{"text_format":"3","workbook":"xlsx","n_sheets":12,"sheets":["SIJ","VLJ","OŽU","TRA","SVI","LIP","SRP","KOL","RUJ","LIS","STU","PRO"],"not_rendered":{"defined_names":40},"read":"whole","date_system":"1900"}

{"sheet":"SIJ","index":0,"n_rows":20,"n_cols":9,"rows_kept":20,"merged":[[16,2,17,2],[16,3,17,3],[17,4,19,8]]}
[null,"SIJ","NED",{"$f":"UPPER(TEXT(D3,\"aaa\"))","v":"PON"},"UTO","SRI","ČET","PET","SUB"]
[null,{"$f":"YEAR(TODAY())","v":2018}]
[null,null,{"$f":"DaysAndWeeks+DATE(KalendarskaGodina,1,1)-WEEKDAY(DATE(KalendarskaGodina,1,1),(WeekStart=\"PON\")+1)+1","v":"2017-12-31"},"2018-01-01","2018-01-02","2018-01-03","2018-01-04","2018-01-05","2018-01-06"]
[null,null,{"$f":"IF(DAY(DanKalendara)=1,CONCATENATE(\"Tjedan \",WEEKNUM(DanKalendara),\"/Dan \",DanKalendara-DATE(YEAR(DanKalendara),1,0)),CONCATENATE(\"Dan \",DanKalendara-DATE(YEAR(DanKalendara),1,0)))","v":"Dan 365"},{"$f":"IF(DAY(DanKalendara)=1,CONCATENATE(\"Tjedan \",WEEKNUM(DanKalendara),\"/Dan \",DanKalendara-DATE(YEAR(DanKalendara),1,0)),CONCATENATE(\"Dan \",DanKalendara-DATE(YEAR(DanKalendara),1,0)))","v":"Tjedan 1/Dan 1"},{"$f":"IF(DAY(DanKalendara)=1,CONCATENATE(\"Tjedan \",WEEKNUM(DanKalendara),\"/Dan \",DanKalendara-DATE(YEAR(DanKalendara),1,0)),CONCATENATE(\"Dan \",DanKalendara-DATE(YEAR(DanKalendara),1,0)))","v":"Dan 2"},{"$f":"IF(DAY(DanKalendara)=1,CONCATENATE(\"Tjedan \",WEEKNUM(DanKalendara),\"/Dan \",DanKalendara-DATE(YEAR(DanKalendara),1,0)),CONCATENATE(\"Dan \",DanKalendara-DATE(YEAR(DanKalendara),1,0)))","v":"Dan 3"},{"$f":"IF(DAY(DanKalendara)=1,CONCATENATE(\"Tjedan \",WEEKNUM(DanKalendara),\"/Dan \",DanKalendara-DATE(YEAR(DanKalendara),1,0)),CONCATENATE(\"Dan \",DanKalendara-DATE(YEAR(DanKalendara),1,0)))","v":"Dan 4"},{"$f":"IF(DAY(DanKalendara)=1,CONCATENATE(\"Tjedan \",WEEKNUM(DanKalendara),\"/Dan \",DanKalendara-DATE(YEAR(DanKalendara),1,0)),CONCATENATE(\"Dan \",DanKalendara-DATE(YEAR(DanKalendara),1,0)))","v":"Dan 5"},{"$f":"IF(DAY(DanKalendara)=1,CONCATENATE(\"Tjedan \",WEEKNUM(DanKalendara),\"/Dan \",DanKalendara-DATE(YEAR(DanKalendara),1,0)),CONCATENATE(\"Dan \",DanKalendara-DATE(YEAR(DanKalendara),1,0)))","v":"Dan 6"}]
[]
[null,null,{"$f":"DaysAndWeeks+DATE(KalendarskaGodina,1,1)-WEEKDAY(DATE(KalendarskaGodina,1,1),(WeekStart=\"PON\")+1)+8","v":"2018-01-07"},"2018-01-08","2018-01-09","2018-01-10","2018-01-11","2018-01-12","2018-01-13"]
[null,null,{"$f":"IF(WEEKDAY(DanKalendara)=WeekStartValue,CONCATENATE(\"Tjedan \",WEEKNUM(DanKalendara),\"/Dan \",DanKalendara-DATE(YEAR(DanKalendara),1,0)),CONCATENATE(\"Dan \",DanKalendara-DATE(YEAR(DanKalendara),1,0)))","v":"Tjedan 2/Dan 7"},{"$f":"IF(WEEKDAY(DanKalendara)=WeekStartValue,CONCATENATE(\"Tjedan \",WEEKNUM(DanKalendara),\"/Dan \",DanKalendara-DATE(YEAR(DanKalendara),1,0)),CONCATENATE(\"Dan \",DanKalendara-DATE(YEAR(DanKalendara),1,0)))","v":"Dan 8"},{"$f":"IF(WEEKDAY(DanKalendara)=WeekStartValue,CONCATENATE(\"Tjedan \",WEEKNUM(DanKalendara),\"/Dan \",DanKalendara-DATE(YEAR(DanKalendara),1,0)),CONCATENATE(\"Dan \",DanKalendara-DATE(YEAR(DanKalendara),1,0)))","v":"Dan 9"},{"$f":"IF(WEEKDAY(DanKalendara)=WeekStartValue,CONCATENATE(\"Tjedan \",WEEKNUM(DanKalendara),\"/Dan \",DanKalendara-DATE(YEAR(DanKalendara),1,0)),CONCATENATE(\"Dan \",DanKalendara-DATE(YEAR(DanKalendara),1,0)))","v":"Dan 10"},{"$f":"IF(WEEKDAY(DanKalendara)=WeekStartValue,CONCATENATE(\"Tjedan \",WEEKNUM(DanKalendara),\"/Dan \",DanKalendara-DATE(YEAR(DanKalendara),1,0)),CONCATENATE(\"Dan \",DanKalendara-DATE(YEAR(DanKalendara),1,0)))","v":"Dan 11"},{"$f":"IF(WEEKDAY(DanKalendara)=WeekStartValue,CONCATENATE(\"Tjedan \",WEEKNUM(DanKalendara),\"/Dan \",DanKalendara-DATE(YEAR(DanKalendara),1,0)),CONCATENATE(\"Dan \",DanKalendara-DATE(YEAR(DanKalendara),1,0)))","v":"Dan 12"},{"$f":"IF(WEEKDAY(DanKalendara)=WeekStartValue,CONCATENATE(\"Tjedan \",WEEKNUM(DanKalendara),\"/Dan \",DanKalendara-DATE(YEAR(DanKalendara),1,0)),CONCATENATE(\"Dan \",DanKalendara-DATE(YEAR(DanKalendara),1,0)))","v":"Dan 13"}]
[]
[null,null,{"$f":"DaysAndWeeks+DATE(KalendarskaGodina,1,1)-WEEKDAY(DATE(KalendarskaGodina,1,1),(WeekStart=\"PON\")+1)+15","v":"2018-01-14"},"2018-01-15","2018-01-16","2018-01-17","2018-01-18","2018-01-19","2018-01-20"]
[null,null,{"$f":"IF(WEEKDAY(DanKalendara)=WeekStartValue,CONCATENATE(\"Tjedan \",WEEKNUM(DanKalendara),\"/Dan \",DanKalendara-DATE(YEAR(DanKalendara),1,0)),CONCATENATE(\"Dan \",DanKalendara-DATE(YEAR(DanKalendara),1,0)))","v":"Tjedan 3/Dan 14"},{"$f":"IF(WEEKDAY(DanKalendara)=WeekStartValue,CONCATENATE(\"Tjedan \",WEEKNUM(DanKalendara),\"/Dan \",DanKalendara-DATE(YEAR(DanKalendara),1,0)),CONCATENATE(\"Dan \",DanKalendara-DATE(YEAR(DanKalendara),1,0)))","v":"Dan 15"},{"$f":"IF(WEEKDAY(DanKalendara)=WeekStartValue,CONCATENATE(\"Tjedan \",WEEKNUM(DanKalendara),\"/Dan \",DanKalendara-DATE(YEAR(DanKalendara),1,0)),CONCATENATE(\"Dan \",DanKalendara-DATE(YEAR(DanKalendara),1,0)))","v":"Dan 16"},{"$f":"IF(WEEKDAY(DanKalendara)=WeekStartValue,CONCATENATE(\"Tjedan \",WEEKNUM(DanKalendara),\"/Dan \",DanKalendara-DATE(YEAR(DanKalendara),1,0)),CONCATENATE(\"Dan \",DanKalendara-DATE(YEAR(DanKalendara),1,0)))","v":"Dan 17"},{"$f":"IF(WEEKDAY(DanKalendara)=WeekStartValue,CONCATENATE(\"Tjedan \",WEEKNUM(DanKalendara),\"/Dan \",DanKalendara-DATE(YEAR(DanKalendara),1,0)),CONCATENATE(\"Dan \",DanKalendara-DATE(YEAR(DanKalendara),1,0)))","v":"Dan 18"},{"$f":"IF(WEEKDAY(DanKalendara)=WeekStartValue,CONCATENATE(\"Tjedan \",WEEKNUM(DanKalendara),\"/Dan \",DanKalendara-DATE(YEAR(DanKalendara),1,0)),CONCATENATE(\"Dan \",DanKalendara-DATE(YEAR(DanKalendara),1,0)))","v":"Dan 19"},{"$f":"IF(WEEKDAY(DanKalendara)=WeekStartValue,CONCATENATE(\"Tjedan \",WEEKNUM(DanKalendara),\"/Dan \",DanKalendara-DATE(YEAR(DanKalendara),1,0)),CONCATENATE(\"Dan \",DanKalendara-DATE(YEAR(DanKalendara),1,0)))","v":"Dan 20"}]
[]
[null,null,{"$f":"DaysAndWeeks+DATE(KalendarskaGodina,1,1)-WEEKDAY(DATE(KalendarskaGodina,1,1),(WeekStart=\"PON\")+1)+22","v":"2018-01-21"},"2018-01-22","2018-01-23","2018-01-24","2018-01-25","2018-01-26","2018-01-27"]
[null,null,{"$f":"IF(WEEKDAY(DanKalendara)=WeekStartValue,CONCATENATE(\"Tjedan \",WEEKNUM(DanKalendara),\"/Dan \",DanKalendara-DATE(YEAR(DanKalendara),1,0)),CONCATENATE(\"Dan \",DanKalendara-DATE(YEAR(DanKalendara),1,0)))","v":"Tjedan 4/Dan 21"},{"$f":"IF(WEEKDAY(DanKalendara)=WeekStartValue,CONCATENATE(\"Tjedan \",WEEKNUM(DanKalendara),\"/Dan \",DanKalendara-DATE(YEAR(DanKalendara),1,0)),CONCATENATE(\"Dan \",DanKalendara-DATE(YEAR(DanKalendara),1,0)))","v":"Dan 22"},{"$f":"IF(WEEKDAY(DanKalendara)=WeekStartValue,CONCATENATE(\"Tjedan \",WEEKNUM(DanKalendara),\"/Dan \",DanKalendara-DATE(YEAR(DanKalendara),1,0)),CONCATENATE(\"Dan \",DanKalendara-DATE(YEAR(DanKalendara),1,0)))","v":"Dan 23"},{"$f":"IF(WEEKDAY(DanKalendara)=WeekStartValue,CONCATENATE(\"Tjedan \",WEEKNUM(DanKalendara),\"/Dan \",DanKalendara-DATE(YEAR(DanKalendara),1,0)),CONCATENATE(\"Dan \",DanKalendara-DATE(YEAR(DanKalendara),1,0)))","v":"Dan 24"},{"$f":"IF(WEEKDAY(DanKalendara)=WeekStartValue,CONCATENATE(\"Tjedan \",WEEKNUM(DanKalendara),\"/Dan \",DanKalendara-DATE(YEAR(DanKalendara),1,0)),CONCATENATE(\"Dan \",DanKalendara-DATE(YEAR(DanKalendara),1,0)))","v":"Dan 25"},{"$f":"IF(WEEKDAY(DanKalendara)=WeekStartValue,CONCATENATE(\"Tjedan \",WEEKNUM(DanKalendara),\"/Dan \",DanKalendara-DATE(YEAR(DanKalendara),1,0)),CONCATENATE(\"Dan \",DanKalendara-DATE(YEAR(DanKalendara),1,0)))","v":"Dan 26"},{"$f":"IF(WEEKDAY(DanKalendara)=WeekStartValue,CONCATENATE(\"Tjedan \",WEEKNUM(DanKalendara),\"/Dan \",DanKalendara-DATE(YEAR(DanKalendara),1,0)),CONCATENATE(\"Dan \",DanKalendara-DATE(YEAR(DanKalendara),1,0)))","v":"Dan 27"}]
[]
[null,null,{"$f":"DaysAndWeeks+DATE(KalendarskaGodina,1,1)-WEEKDAY(DATE(KalendarskaGodina,1,1),(WeekStart=\"PON\")+1)+29","v":"2018-01-28"},"2018-01-29","2018-01-30","2018-01-31","2018-02-01","2018-02-02","2018-02-03"]
[null,null,{"$f":"IF(WEEKDAY(DanKalendara)=WeekStartValue,CONCATENATE(\"Tjedan \",WEEKNUM(DanKalendara),\"/Dan \",DanKalendara-DATE(YEAR(DanKalendara),1,0)),CONCATENATE(\"Dan \",DanKalendara-DATE(YEAR(DanKalendara),1,0)))","v":"Tjedan 5/Dan 28"},{"$f":"IF(WEEKDAY(DanKalendara)=WeekStartValue,CONCATENATE(\"Tjedan \",WEEKNUM(DanKalendara),\"/Dan \",DanKalendara-DATE(YEAR(DanKalendara),1,0)),CONCATENATE(\"Dan \",DanKalendara-DATE(YEAR(DanKalendara),1,0)))","v":"Dan 29"},{"$f":"IF(WEEKDAY(DanKalendara)=WeekStartValue,CONCATENATE(\"Tjedan \",WEEKNUM(DanKalendara),\"/Dan \",DanKalendara-DATE(YEAR(DanKalendara),1,0)),CONCATENATE(\"Dan \",DanKalendara-DATE(YEAR(DanKalendara),1,0)))","v":"Dan 30"},{"$f":"IF(WEEKDAY(DanKalendara)=WeekStartValue,CONCATENATE(\"Tjedan \",WEEKNUM(DanKalendara),\"/Dan \",DanKalendara-DATE(YEAR(DanKalendara),1,0)),CONCATENATE(\"Dan \",DanKalendara-DATE(YEAR(DanKalendara),1,0)))","v":"Dan 31"},{"$f":"IF(WEEKDAY(DanKalendara)=WeekStartValue,CONCATENATE(\"Tjedan \",WEEKNUM(DanKalendara),\"/Dan \",DanKalendara-DATE(YEAR(DanKalendara),1,0)),CONCATENATE(\"Dan \",DanKalendara-DATE(YEAR(DanKalendara),1,0)))","v":"Dan 32"},{"$f":"IF(WEEKDAY(DanKalendara)=WeekStartValue,CONCATENATE(\"Tjedan \",WEEKNUM(DanKalendara),\"/Dan \",DanKalendara-DATE(YEAR(DanKalendara),1,0)),CONCATENATE(\"Dan \",DanKalendara-DATE(YEAR(DanKalendara),1,0)))","v":"Dan 33"},{"$f":"IF(WEEKDAY(DanKalendara)=WeekStartValue,CONCATENATE(\"Tjedan \",WEEKNUM(DanKalendara),\"/Dan \",DanKalendara-DATE(YEAR(DanKalendara),1,0)),CONCATENATE(\"Dan \",DanKalendara-DATE(YEAR(DanKalendara),1,0)))","v":"Dan 34"}]
[{"$nulls":4},"BILJEŠKE"]
[]
[null,null,{"$f":"DaysAndWeeks+DATE(KalendarskaGodina,1,1)-WEEKDAY(DATE(KalendarskaGodina,1,1),(WeekStart=\"PON\")+1)+36","v":"2018-02-04"},"2018-02-05"]
[null,null,{"$f":"IF(WEEKDAY(DanKalendara)=WeekStartValue,CONCATENATE(\"Tjedan \",WEEKNUM(DanKalendara),\"/Dan \",DanKalendara-DATE(YEAR(DanKalendara),1,0)),CONCATENATE(\"Dan \",DanKalendara-DATE(YEAR(DanKalendara),1,0)))","v":"Tjedan 6/Dan 35"},{"$f":"IF(WEEKDAY(DanKalendara)=WeekStartValue,CONCATENATE(\"Tjedan \",WEEKNUM(DanKalendara),\"/Dan \",DanKalendara-DATE(YEAR(DanKalendara),1,0)),CONCATENATE(\"Dan \",DanKalendara-DATE(YEAR(DanKalendara),1,0)))","v":"Dan 36"}]

{"sheet":"VLJ","index":1,"n_rows":20,"n_cols":9,"rows_kept":20,"merged":[[16,2,17,2],[17,4,19,8]]}
[null,"VLJ",{"$f":"UPPER(TEXT(WeekStart,\"ddd\"))","v":"NED"},{"$f":"UPPER(TEXT(D3,\"aaa\"))","v":"PON"},"UTO","SRI","ČET","PET","SUB"]
[null,{"$f":"KalendarskaGodina","v":2018}]
[null,null,{"$f":"DaysAndWeeks+DATE(KalendarskaGodina,2,1)-WEEKDAY(DATE(KalendarskaGodina,2,1),(WeekStart=\"PON\")+1)+1","v":"2018-01-28"},"2018-01-29","2018-01-30","2018-01-31","2018-02-01","2018-02-02","2018-02-03"]
[null,null,{"$f":"IF(DAY(DanKalendara)=1,CONCATENATE(\"Tjedan \",WEEKNUM(DanKalendara),\"/Dan \",DanKalendara-DATE(YEAR(DanKalendara),1,0)),CONCATENATE(\"Dan \",DanKalendara-DATE(YEAR(DanKalendara),1,0)))","v":"Dan 28"},{"$f":"IF(DAY(DanKalendara)=1,CONCATENATE(\"Tjedan \",WEEKNUM(DanKalendara),\"/Dan \",DanKalendara-DATE(YEAR(DanKalendara),1,0)),CONCATENATE(\"Dan \",DanKalendara-DATE(YEAR(DanKalendara),1,0)))","v":"Dan 29"},{"$f":"IF(DAY(DanKalendara)=1,CONCATENATE(\"Tjedan \",WEEKNUM(DanKalendara),\"/Dan \",DanKalendara-DATE(YEAR(DanKalendara),1,0)),CONCATENATE(\"Dan \",DanKalendara-DATE(YEAR(DanKalendara),1,0)))","v":"Dan 30"},{"$f":"IF(DAY(DanKalendara)=1,CONCATENATE(\"Tjedan \",WEEKNUM(DanKalendara),\"/Dan \",DanKalendara-DATE(YEAR(DanKalendara),1,0)),CONCATENATE(\"Dan \",DanKalendara-DATE(YEAR(DanKalendara),1,0)))","v":"Dan 31"},{"$f":"IF(DAY(DanKalendara)=1,CONCATENATE(\"Tjedan \",WEEKNUM(DanKalendara),\"/Dan \",DanKalendara-DATE(YEAR(DanKalendara),1,0)),CONCATENATE(\"Dan \",DanKalendara-DATE(YEAR(DanKalendara),1,0)))","v":"Tjedan 5/Dan 32"},{"$f":"IF(DAY(DanKalendara)=1,CONCATENATE(\"Tjedan \",WEEKNUM(DanKalendara),\"/Dan \",DanKalendara-DATE(YEAR(DanKalendara),1,0)),CONCATENATE(\"Dan \",DanKalendara-DATE(YEAR(DanKalendara),1,0)))","v":"Dan 33"},{"$f":"IF(DAY(DanKalendara)=1,CONCATENATE(\"Tjedan \",WEEKNUM(DanKalendara),\"/Dan \",DanKalendara-DATE(YEAR(DanKalendara),1,0)),CONCATENATE(\"Dan \",DanKalendara-DATE(YEAR(DanKalendara),1,0)))","v":"Dan 34"}]
[]
[null,null,{"$f":"DaysAndWeeks+DATE(KalendarskaGodina,2,1)-WEEKDAY(DATE(KalendarskaGodina,2,1),(WeekStart=\"PON\")+1)+8","v":"2018-02-04"},"2018-02-05","2018-02-06","2018-02-07","2018-02-08","2018-02-09","2018-02-10"]
[null,null,{"$f":"IF(WEEKDAY(DanKalendara)=WeekStartValue,CONCATENATE(\"Tjedan \",WEEKNUM(DanKalendara),\"/Dan \",DanKalendara-DATE(YEAR(DanKalendara),1,0)),CONCATENATE(\"Dan \",DanKalendara-DATE(YEAR(DanKalendara),1,0)))","v":"Tjedan 6/Dan 35"},{"$f":"IF(WEEKDAY(DanKalendara)=WeekStartValue,CONCATENATE(\"Tjedan \",WEEKNUM(DanKalendara),\"/Dan \",DanKalendara-DATE(YEAR(DanKalendara),1,0)),CONCATENATE(\"Dan \",DanKalendara-DATE(YEAR(DanKalendara),1,0)))","v":"Dan 36"},{"$f":"IF(WEEKDAY(DanKalendara)=WeekStartValue,CONCATENATE(\"Tjedan \",WEEKNUM(DanKalendara),\"/Dan \",DanKalendara-DATE(YEAR(DanKalendara),1,0)),CONCATENATE(\"Dan \",DanKalendara-DATE(YEAR(DanKalendara),1,0)))","v":"Dan 37"},{"$f":"IF(WEEKDAY(DanKalendara)=WeekStartValue,CONCATENATE(\"Tjedan \",WEEKNUM(DanKalendara),\"/Dan \",DanKalendara-DATE(YEAR(DanKalendara),1,0)),CONCATENATE(\"Dan \",DanKalendara-DATE(YEAR(DanKalendara),1,0)))","v":"Dan 38"},{"$f":"IF(WEEKDAY(DanKalendara)=WeekStartValue,CONCATENATE(\"Tjedan \",WEEKNUM(DanKalendara),\"/Dan \",DanKalendara-DATE(YEAR(DanKalendara),1,0)),CONCATENATE(\"Dan \",DanKalendara-DATE(YEAR(DanKalendara),1,0)))","v":"Dan 39"},{"$f":"IF(WEEKDAY(DanKalendara)=WeekStartValue,CONCATENATE(\"Tjedan \",WEEKNUM(DanKalendara),\"/Dan \",DanKalendara-DATE(YEAR(DanKalendara),1,0)),CONCATENATE(\"Dan \",DanKalendara-DATE(YEAR(DanKalendara),1,0)))","v":"Dan 40"},{"$f":"IF(WEEKDAY(DanKalendara)=WeekStartValue,CONCATENATE(\"Tjedan \",WEEKNUM(DanKalendara),\"/Dan \",DanKalendara-DATE(YEAR(DanKalendara),1,0)),CONCATENATE(\"Dan \",DanKalendara-DATE(YEAR(DanKalendara),1,0)))","v":"Dan 41"}]
[]
[null,null,{"$f":"DaysAndWeeks+DATE(KalendarskaGodina,2,1)-WEEKDAY(DATE(KalendarskaGodina,2,1),(WeekStart=\"PON\")+1)+15","v":"2018-02-11"},"2018-02-12","2018-02-13","2018-02-14","2018-02-15","2018-02-16","2018-02-17"]
[null,null,{"$f":"IF(WEEKDAY(DanKalendara)=WeekStartValue,CONCATENATE(\"Tjedan \",WEEKNUM(DanKalendara),\"/Dan \",DanKalendara-DATE(YEAR(DanKalendara),1,0)),CONCATENATE(\"Dan \",DanKalendara-DATE(YEAR(DanKalendara),1,0)))","v":"Tjedan 7/Dan 42"},{"$f":"IF(WEEKDAY(DanKalendara)=WeekStartValue,CONCATENATE(\"Tjedan \",WEEKNUM(DanKalendara),\"/Dan \",DanKalendara-DATE(YEAR(DanKalendara),1,0)),CONCATENATE(\"Dan \",DanKalendara-DATE(YEAR(DanKalendara),1,0)))","v":"Dan 43"},{"$f":"IF(WEEKDAY(DanKalendara)=WeekStartValue,CONCATENATE(\"Tjedan \",WEEKNUM(DanKalendara),\"/Dan \",DanKalendara-DATE(YEAR(DanKalendara),1,0)),CONCATENATE(\"Dan \",DanKalendara-DATE(YEAR(DanKalendara),1,0)))","v":"Dan 44"},{"$f":"IF(WEEKDAY(DanKalendara)=WeekStartValue,CONCATENATE(\"Tjedan \",WEEKNUM(DanKalendara),\"/Dan \",DanKalendara-DATE(YEAR(DanKalendara),1,0)),CONCATENATE(\"Dan \",DanKalendara-DATE(YEAR(DanKalendara),1,0)))","v":"Dan 45"},{"$f":"IF(WEEKDAY(DanKalendara)=WeekStartValue,CONCATENATE(\"Tjedan \",WEEKNUM(DanKalendara),\"/Dan \",DanKalendara-DATE(YEAR(DanKalendara),1,0)),CONCATENATE(\"Dan \",DanKalendara-DATE(YEAR(DanKalendara),1,0)))","v":"Dan 46"},{"$f":"IF(WEEKDAY(DanKalendara)=WeekStartValue,CONCATENATE(\"Tjedan \",WEEKNUM(DanKalendara),\"/Dan \",DanKalendara-DATE(YEAR(DanKalendara),1,0)),CONCATENATE(\"Dan \",DanKalendara-DATE(YEAR(DanKalendara),1,0)))","v":"Dan 47"},{"$f":"IF(WEEKDAY(DanKalendara)=WeekStartValue,CONCATENATE(\"Tjedan \",WEEKNUM(DanKalendara),\"/Dan \",DanKalendara-DATE(YEAR(DanKalendara),1,0)),CONCATENATE(\"Dan \",DanKalendara-DATE(YEAR(DanKalendara),1,0)))","v":"Dan 48"}]
[]
[null,null,{"$f":"DaysAndWeeks+DATE(KalendarskaGodina,2,1)-WEEKDAY(DATE(KalendarskaGodina,2,1),(WeekStart=\"PON\")+1)+22","v":"2018-02-18"},"2018-02-19","2018-02-20","2018-02-21","2018-02-22","2018-02-23","2018-02-24"]
[null,null,{"$f":"IF(WEEKDAY(DanKalendara)=WeekStartValue,CONCATENATE(\"Tjedan \",WEEKNUM(DanKalendara),\"/Dan \",DanKalendara-DATE(YEAR(DanKalendara),1,0)),CONCATENATE(\"Dan \",DanKalendara-DATE(YEAR(DanKalendara),1,0)))","v":"Tjedan 8/Dan 49"},{"$f":"IF(WEEKDAY(DanKalendara)=WeekStartValue,CONCATENATE(\"Tjedan \",WEEKNUM(DanKalendara),\"/Dan \",DanKalendara-DATE(YEAR(DanKalendara),1,0)),CONCATENATE(\"Dan \",DanKalendara-DATE(YEAR(DanKalendara),1,0)))","v":"Dan 50"},{"$f":"IF(WEEKDAY(DanKalendara)=WeekStartValue,CONCATENATE(\"Tjedan \",WEEKNUM(DanKalendara),\"/Dan \",DanKalendara-DATE(YEAR(DanKalendara),1,0)),CONCATENATE(\"Dan \",DanKalendara-DATE(YEAR(DanKalendara),1,0)))","v":"Dan 51"},{"$f":"IF(WEEKDAY(DanKalendara)=WeekStartValue,CONCATENATE(\"Tjedan \",WEEKNUM(DanKalendara),\"/Dan \",DanKalendara-DATE(YEAR(DanKalendara),1,0)),CONCATENATE(\"Dan \",DanKalendara-DATE(YEAR(DanKalendara),1,0)))","v":"Dan 52"},{"$f":"IF(WEEKDAY(DanKalendara)=WeekStartValue,CONCATENATE(\"Tjedan \",WEEKNUM(DanKalendara),\"/Dan \",DanKalendara-DATE(YEAR(DanKalendara),1,0)),CONCATENATE(\"Dan \",DanKalendara-DATE(YEAR(DanKalendara),1,0)))","v":"Dan 53"},{"$f":"IF(WEEKDAY(DanKalendara)=WeekStartValue,CONCATENATE(\"Tjedan \",WEEKNUM(DanKalendara),\"/Dan \",DanKalendara-DATE(YEAR(DanKalendara),1,0)),CONCATENATE(\"Dan \",DanKalendara-DATE(YEAR(DanKalendara),1,0)))","v":"Dan 54"},{"$f":"IF(WEEKDAY(DanKalendara)=WeekStartValue,CONCATENATE(\"Tjedan \",WEEKNUM(DanKalendara),\"/Dan \",DanKalendara-DATE(YEAR(DanKalendara),1,0)),CONCATENATE(\"Dan \",DanKalendara-DATE(YEAR(DanKalendara),1,0)))","v":"Dan 55"}]
[]
[null,null,{"$f":"DaysAndWeeks+DATE(KalendarskaGodina,2,1)-WEEKDAY(DATE(KalendarskaGodina,2,1),(WeekStart=\"PON\")+1)+29","v":"2018-02-25"},"2018-02-26","2018-02-27","2018-02-28","2018-03-01","2018-03-02","2018-03-03"]
[null,null,{"$f":"IF(WEEKDAY(DanKalendara)=WeekStartValue,CONCATENATE(\"Tjedan \",WEEKNUM(DanKalendara),\"/Dan \",DanKalendara-DATE(YEAR(DanKalendara),1,0)),CONCATENATE(\"Dan \",DanKalendara-DATE(YEAR(DanKalendara),1,0)))","v":"Tjedan 9/Dan 56"},{"$f":"IF(WEEKDAY(DanKalendara)=WeekStartValue,CONCATENATE(\"Tjedan \",WEEKNUM(DanKalendara),\"/Dan \",DanKalendara-DATE(YEAR(DanKalendara),1,0)),CONCATENATE(\"Dan \",DanKalendara-DATE(YEAR(DanKalendara),1,0)))","v":"Dan 57"},{"$f":"IF(WEEKDAY(DanKalendara)=WeekStartValue,CONCATENATE(\"Tjedan \",WEEKNUM(DanKalendara),\"/Dan \",DanKalendara-DATE(YEAR(DanKalendara),1,0)),CONCATENATE(\"Dan \",DanKalendara-DATE(YEAR(DanKalendara),1,0)))","v":"Dan 58"},{"$f":"IF(WEEKDAY(DanKalendara)=WeekStartValue,CONCATENATE(\"Tjedan \",WEEKNUM(DanKalendara),\"/Dan \",DanKalendara-DATE(YEAR(DanKalendara),1,0)),CONCATENATE(\"Dan \",DanKalendara-DATE(YEAR(DanKalendara),1,0)))","v":"Dan 59"},{"$f":"IF(WEEKDAY(DanKalendara)=WeekStartValue,CONCATENATE(\"Tjedan \",WEEKNUM(DanKalendara),\"/Dan \",DanKalendara-DATE(YEAR(DanKalendara),1,0)),CONCATENATE(\"Dan \",DanKalendara-DATE(YEAR(DanKalendara),1,0)))","v":"Dan 60"},{"$f":"IF(WEEKDAY(DanKalendara)=WeekStartValue,CONCATENATE(\"Tjedan \",WEEKNUM(DanKalendara),\"/Dan \",DanKalendara-DATE(YEAR(DanKalendara),1,0)),CONCATENATE(\"Dan \",DanKalendara-DATE(YEAR(DanKalendara),1,0)))","v":"Dan 61"},{"$f":"IF(WEEKDAY(DanKalendara)=WeekStartValue,CONCATENATE(\"Tjedan \",WEEKNUM(DanKalendara),\"/Dan \",DanKalendara-DATE(YEAR(DanKalendara),1,0)),CONCATENATE(\"Dan \",DanKalendara-DATE(YEAR(DanKalendara),1,0)))","v":"Dan 62"}]
[{"$nulls":4},"BILJEŠKE"]
[]
[null,null,{"$f":"DaysAndWeeks+DATE(KalendarskaGodina,2,1)-WEEKDAY(DATE(KalendarskaGodina,2,1),(WeekStart=\"PON\")+1)+36","v":"2018-03-04"},"2018-03-05"]
[null,null,{"$f":"IF(WEEKDAY(DanKalendara)=WeekStartValue,CONCATENATE(\"Tjedan \",WEEKNUM(DanKalendara),\"/Dan \",DanKalendara-DATE(YEAR(DanKalendara),1,0)),CONCATENATE(\"Dan \",DanKalendara-DATE(YEAR(DanKalendara),1,0)))","v":"Tjedan 10/Dan 63"},{"$f":"IF(WEEKDAY(DanKalendara)=WeekStartValue,CONCATENATE(\"Tjedan \",WEEKNUM(DanKalendara),\"/Dan \",DanKalendara-DATE(YEAR(DanKalendara),1,0)),CONCATENATE(\"Dan \",DanKalendara-DATE(YEAR(DanKalendara),1,0)))","v":"Dan 64"}]

{"sheet":"OŽU","index":2,"n_rows":20,"n_cols":9,"rows_kept":20,"merged":[[16,2,17,2],[17,4,19,8]]}
[null,"OŽU",{"$f":"UPPER(TEXT(WeekStart,\"ddd\"))","v":"NED"},{"$f":"UPPER(TEXT(D3,\"aaa\"))","v":"PON"},"UTO","SRI","ČET","PET","SUB"]
[null,{"$f":"KalendarskaGodina","v":2018}]
[null,null,{"$f":"DaysAndWeeks+DATE(KalendarskaGodina,3,1)-WEEKDAY(DATE(KalendarskaGodina,3,1),(WeekStart=\"PON\")+1)+1","v":"2018-02-25"},"2018-02-26","2018-02-27","2018-02-28","2018-03-01","2018-03-02","2018-03-03"]
[null,null,{"$f":"IF(DAY(DanKalendara)=1,CONCATENATE(\"Tjedan \",WEEKNUM(DanKalendara),\"/Dan \",DanKalendara-DATE(YEAR(DanKalendara),1,0)),CONCATENATE(\"Dan \",DanKalendara-DATE(YEAR(DanKalendara),1,0)))","v":"Dan 56"},{"$f":"IF(DAY(DanKalendara)=1,CONCATENATE(\"Tjedan \",WEEKNUM(DanKalendara),\"/Dan \",DanKalendara-DATE(YEAR(DanKalendara),1,0)),CONCATENATE(\"Dan \",DanKalendara-DATE(YEAR(DanKalendara),1,0)))","v":"Dan 57"},{"$f":"IF(DAY(DanKalendara)=1,CONCATENATE(\"Tjedan \",WEEKNUM(DanKalendara),\"/Dan \",DanKalendara-DATE(YEAR(DanKalendara),1,0)),CONCATENATE(\"Dan \",DanKalendara-DATE(YEAR(DanKalendara),1,0)))","v":"Dan 58"},{"$f":"IF(DAY(DanKalendara)=1,CONCATENATE(\"Tjedan \",WEEKNUM(DanKalendara),\"/Dan \",DanKalendara-DATE(YEAR(DanKalendara),1,0)),CONCATENATE(\"Dan \",DanKalendara-DATE(YEAR(DanKalendara),1,0)))","v":"Dan 59"},{"$f":"IF(DAY(DanKalendara)=1,CONCATENATE(\"Tjedan \",WEEKNUM(DanKalendara),\"/Dan \",DanKalendara-DATE(YEAR(DanKalendara),1,0)),CONCATENATE(\"Dan \",DanKalendara-DATE(YEAR(DanKalendara),1,0)))","v":"Tjedan 9/Dan 60"},{"$f":"IF(DAY(DanKalendara)=1,CONCATENATE(\"Tjedan \",WEEKNUM(DanKalendara),\"/Dan \",DanKalendara-DATE(YEAR(DanKalendara),1,0)),CONCATENATE(\"Dan \",DanKalendara-DATE(YEAR(DanKalendara),1,0)))","v":"Dan 61"},{"$f":"IF(DAY(DanKalendara)=1,CONCATENATE(\"Tjedan \",WEEKNUM(DanKalendara),\"/Dan \",DanKalendara-DATE(YEAR(DanKalendara),1,0)),CONCATENATE(\"Dan \",DanKalendara-DATE(YEAR(DanKalendara),1,0)))","v":"Dan 62"}]
[]
[null,null,{"$f":"DaysAndWeeks+DATE(KalendarskaGodina,3,1)-WEEKDAY(DATE(KalendarskaGodina,3,1),(WeekStart=\"PON\")+1)+8","v":"2018-03-04"},"2018-03-05","2018-03-06","2018-03-07","2018-03-08","2018-03-09","2018-03-10"]
[null,null,{"$f":"IF(WEEKDAY(DanKalendara)=WeekStartValue,CONCATENATE(\"Tjedan \",WEEKNUM(DanKalendara),\"/Dan \",DanKalendara-DATE(YEAR(DanKalendara),1,0)),CONCATENATE(\"Dan \",DanKalendara-DATE(YEAR(DanKalendara),1,0)))","v":"Tjedan 10/Dan 63"},{"$f":"IF(WEEKDAY(DanKalendara)=WeekStartValue,CONCATENATE(\"Tjedan \",WEEKNUM(DanKalendara),\"/Dan \",DanKalendara-DATE(YEAR(DanKalendara),1,0)),CONCATENATE(\"Dan \",DanKalendara-DATE(YEAR(DanKalendara),1,0)))","v":"Dan 64"},{"$f":"IF(WEEKDAY(DanKalendara)=WeekStartValue,CONCATENATE(\"Tjedan \",WEEKNUM(DanKalendara),\"/Dan \",DanKalendara-DATE(YEAR(DanKalendara),1,0)),CONCATENATE(\"Dan \",DanKalendara-DATE(YEAR(DanKalendara),1,0)))","v":"Dan 65"},{"$f":"IF(WEEKDAY(DanKalendara)=WeekStartValue,CONCATENATE(\"Tjedan \",WEEKNUM(DanKalendara),\"/Dan \",DanKalendara-DATE(YEAR(DanKalendara),1,0)),CONCATENATE(\"Dan \",DanKalendara-DATE(YEAR(DanKalendara),1,0)))","v":"Dan 66"},{"$f":"IF(WEEKDAY(DanKalendara)=WeekStartValue,CONCATENATE(\"Tjedan \",WEEKNUM(DanKalendara),\"/Dan \",DanKalendara-DATE(YEAR(DanKalendara),1,0)),CONCATENATE(\"Dan \",DanKalendara-DATE(YEAR(DanKalendara),1,0)))","v":"Dan 67"},{"$f":"IF(WEEKDAY(DanKalendara)=WeekStartValue,CONCATENATE(\"Tjedan \",WEEKNUM(DanKalendara),\"/Dan \",DanKalendara-DATE(YEAR(DanKalendara),1,0)),CONCATENATE(\"Dan \",DanKalendara-DATE(YEAR(DanKalendara),1,0)))","v":"Dan 68"},{"$f":"IF(WEEKDAY(DanKalendara)=WeekStartValue,CONCATENATE(\"Tjedan \",WEEKNUM(DanKalendara),\"/Dan \",DanKalendara-DATE(YEAR(DanKalendara),1,0)),CONCATENATE(\"Dan \",DanKalendara-DATE(YEAR(DanKalendara),1,0)))","v":"Dan 69"}]
[]
[null,null,{"$f":"DaysAndWeeks+DATE(KalendarskaGodina,3,1)-WEEKDAY(DATE(KalendarskaGodina,3,1),(WeekStart=\"PON\")+1)+15","v":"2018-03-11"},"2018-03-12","2018-03-13","2018-03-14","2018-03-15","2018-03-16","2018-03-17"]
[null,null,{"$f":"IF(WEEKDAY(DanKalendara)=WeekStartValue,CONCATENATE(\"Tjedan \",WEEKNUM(DanKalendara),\"/Dan \",DanKalendara-DATE(YEAR(DanKalendara),1,0)),CONCATENATE(\"Dan \",DanKalendara-DATE(YEAR(DanKalendara),1,0)))","v":"Tjedan 11/Dan 70"},{"$f":"IF(WEEKDAY(DanKalendara)=WeekStartValue,CONCATENATE(\"Tjedan \",WEEKNUM(DanKalendara),\"/Dan \",DanKalendara-DATE(YEAR(DanKalendara),1,0)),CONCATENATE(\"Dan \",DanKalendara-DATE(YEAR(DanKalendara),1,0)))","v":"Dan 71"},{"$f":"IF(WEEKDAY(DanKalendara)=WeekStartValue,CONCATENATE(\"Tjedan \",WEEKNUM(DanKalendara),\"/Dan \",DanKalendara-DATE(YEAR(DanKalendara),1,0)),CONCATENATE(\"Dan \",DanKalendara-DATE(YEAR(DanKalendara),1,0)))","v":"Dan 72"},{"$f":"IF(WEEKDAY(DanKalendara)=WeekStartValue,CONCATENATE(\"Tjedan \",WEEKNUM(DanKalendara),\"/Dan \",DanKalendara-DATE(YEAR(DanKalendara),1,0)),CONCATENATE(\"Dan \",DanKalendara-DATE(YEAR(DanKalendara),1,0)))","v":"Dan 73"},{"$f":"IF(WEEKDAY(DanKalendara)=WeekStartValue,CONCATENATE(\"Tjedan \",WEEKNUM(DanKalendara),\"/Dan \",DanKalendara-DATE(YEAR(DanKalendara),1,0)),CONCATENATE(\"Dan \",DanKalendara-DATE(YEAR(DanKalendara),1,0)))","v":"Dan 74"},{"$f":"IF(WEEKDAY(DanKalendara)=WeekStartValue,CONCATENATE(\"Tjedan \",WEEKNUM(DanKalendara),\"/Dan \",DanKalendara-DATE(YEAR(DanKalendara),1,0)),CONCATENATE(\"Dan \",DanKalendara-DATE(YEAR(DanKalendara),1,0)))","v":"Dan 75"},{"$f":"IF(WEEKDAY(DanKalendara)=WeekStartValue,CONCATENATE(\"Tjedan \",WEEKNUM(DanKalendara),\"/Dan \",DanKalendara-DATE(YEAR(DanKalendara),1,0)),CONCATENATE(\"Dan \",DanKalendara-DATE(YEAR(DanKalendara),1,0)))","v":"Dan 76"}]
[]
[null,null,{"$f":"DaysAndWeeks+DATE(KalendarskaGodina,3,1)-WEEKDAY(DATE(KalendarskaGodina,3,1),(WeekStart=\"PON\")+1)+22","v":"2018-03-18"},"2018-03-19","2018-03-20","2018-03-21","2018-03-22","2018-03-23","2018-03-24"]
[null,null,{"$f":"IF(WEEKDAY(DanKalendara)=WeekStartValue,CONCATENATE(\"Tjedan \",WEEKNUM(DanKalendara),\"/Dan \",DanKalendara-DATE(YEAR(DanKalendara),1,0)),CONCATENATE(\"Dan \",DanKalendara-DATE(YEAR(DanKalendara),1,0)))","v":"Tjedan 12/Dan 77"},{"$f":"IF(WEEKDAY(DanKalendara)=WeekStartValue,CONCATENATE(\"Tjedan \",WEEKNUM(DanKalendara),\"/Dan \",DanKalendara-DATE(YEAR(DanKalendara),1,0)),CONCATENATE(\"Dan \",DanKalendara-DATE(YEAR(DanKalendara),1,0)))","v":"Dan 78"},{"$f":"IF(WEEKDAY(DanKalendara)=WeekStartValue,CONCATENATE(\"Tjedan \",WEEKNUM(DanKalendara),\"/Dan \",DanKalendara-DATE(YEAR(DanKalendara),1,0)),CONCATENATE(\"Dan \",DanKalendara-DATE(YEAR(DanKalendara),1,0)))","v":"Dan 79"},{"$f":"IF(WEEKDAY(DanKalendara)=WeekStartValue,CONCATENATE(\"Tjedan \",WEEKNUM(DanKalendara),\"/Dan \",DanKalendara-DATE(YEAR(DanKalendara),1,0)),CONCATENATE(\"Dan \",DanKalendara-DATE(YEAR(DanKalendara),1,0)))","v":"Dan 80"},{"$f":"IF(WEEKDAY(DanKalendara)=WeekStartValue,CONCATENATE(\"Tjedan \",WEEKNUM(DanKalendara),\"/Dan \",DanKalendara-DATE(YEAR(DanKalendara),1,0)),CONCATENATE(\"Dan \",DanKalendara-DATE(YEAR(DanKalendara),1,0)))","v":"Dan 81"},{"$f":"IF(WEEKDAY(DanKalendara)=WeekStartValue,CONCATENATE(\"Tjedan \",WEEKNUM(DanKalendara),\"/Dan \",DanKalendara-DATE(YEAR(DanKalendara),1,0)),CONCATENATE(\"Dan \",DanKalendara-DATE(YEAR(DanKalendara),1,0)))","v":"Dan 82"},{"$f":"IF(WEEKDAY(DanKalendara)=WeekStartValue,CONCATENATE(\"Tjedan \",WEEKNUM(DanKalendara),\"/Dan \",DanKalendara-DATE(YEAR(DanKalendara),1,0)),CONCATENATE(\"Dan \",DanKalendara-DATE(YEAR(DanKalendara),1,0)))","v":"Dan 83"}]
[]
[null,null,{"$f":"DaysAndWeeks+DATE(KalendarskaGodina,3,1)-WEEKDAY(DATE(KalendarskaGodina,3,1),(WeekStart=\"PON\")+1)+29","v":"2018-03-25"},"2018-03-26","2018-03-27","2018-03-28","2018-03-29","2018-03-30","2018-03-31"]
[null,null,{"$f":"IF(WEEKDAY(DanKalendara)=WeekStartValue,CONCATENATE(\"Tjedan \",WEEKNUM(DanKalendara),\"/Dan \",DanKalendara-DATE(YEAR(DanKalendara),1,0)),CONCATENATE(\"Dan \",DanKalendara-DATE(YEAR(DanKalendara),1,0)))","v":"Tjedan 13/Dan 84"},{"$f":"IF(WEEKDAY(DanKalendara)=WeekStartValue,CONCATENATE(\"Tjedan \",WEEKNUM(DanKalendara),\"/Dan \",DanKalendara-DATE(YEAR(DanKalendara),1,0)),CONCATENATE(\"Dan \",DanKalendara-DATE(YEAR(DanKalendara),1,0)))","v":"Dan 85"},{"$f":"IF(WEEKDAY(DanKalendara)=WeekStartValue,CONCATENATE(\"Tjedan \",WEEKNUM(DanKalendara),\"/Dan \",DanKalendara-DATE(YEAR(DanKalendara),1,0)),CONCATENATE(\"Dan \",DanKalendara-DATE(YEAR(DanKalendara),1,0)))","v":"Dan 86"},{"$f":"IF(WEEKDAY(DanKalendara)=WeekStartValue,CONCATENATE(\"Tjedan \",WEEKNUM(DanKalendara),\"/Dan \",DanKalendara-DATE(YEAR(DanKalendara),1,0)),CONCATENATE(\"Dan \",DanKalendara-DATE(YEAR(DanKalendara),1,0)))","v":"Dan 87"},{"$f":"IF(WEEKDAY(DanKalendara)=WeekStartValue,CONCATENATE(\"Tjedan \",WEEKNUM(DanKalendara),\"/Dan \",DanKalendara-DATE(YEAR(DanKalendara),1,0)),CONCATENATE(\"Dan \",DanKalendara-DATE(YEAR(DanKalendara),1,0)))","v":"Dan 88"},{"$f":"IF(WEEKDAY(DanKalendara)=WeekStartValue,CONCATENATE(\"Tjedan \",WEEKNUM(DanKalendara),\"/Dan \",DanKalendara-DATE(YEAR(DanKalendara),1,0)),CONCATENATE(\"Dan \",DanKalendara-DATE(YEAR(DanKalendara),1,0)))","v":"Dan 89"},{"$f":"IF(WEEKDAY(DanKalendara)=WeekStartValue,CONCATENATE(\"Tjedan \",WEEKNUM(DanKalendara),\"/Dan \",DanKalendara-DATE(YEAR(DanKalendara),1,0)),CONCATENATE(\"Dan \",DanKalendara-DATE(YEAR(DanKalendara),1,0)))","v":"Dan 90"}]
[{"$nulls":4},"BILJEŠKE"]
[]
[null,null,{"$f":"DaysAndWeeks+DATE(KalendarskaGodina,3,1)-WEEKDAY(DATE(KalendarskaGodina,3,1),(WeekStart=\"PON\")+1)+36","v":"2018-04-01"},"2018-04-02"]
[null,null,{"$f":"IF(WEEKDAY(DanKalendara)=WeekStartValue,CONCATENATE(\"Tjedan \",WEEKNUM(DanKalendara),\"/Dan \",DanKalendara-DATE(YEAR(DanKalendara),1,0)),CONCATENATE(\"Dan \",DanKalendara-DATE(YEAR(DanKalendara),1,0)))","v":"Tjedan 14/Dan 91"},{"$f":"IF(WEEKDAY(DanKalendara)=WeekStartValue,CONCATENATE(\"Tjedan \",WEEKNUM(DanKalendara),\"/Dan \",DanKalendara-DATE(YEAR(DanKalendara),1,0)),CONCATENATE(\"Dan \",DanKalendara-DATE(YEAR(DanKalendara),1,0)))","v":"Dan 92"}]

{"sheet":"TRA","index":3,"n_rows":20,"n_cols":9,"rows_kept":20,"merged":[[16,2,17,2],[17,4,19,8]]}
[null,"TRA",{"$f":"UPPER(TEXT(WeekStart,\"ddd\"))","v":"NED"},{"$f":"UPPER(TEXT(D3,\"aaa\"))","v":"PON"},"UTO","SRI","ČET","PET","SUB"]
[null,{"$f":"KalendarskaGodina","v":2018}]
[null,null,{"$f":"DaysAndWeeks+DATE(KalendarskaGodina,4,1)-WEEKDAY(DATE(KalendarskaGodina,4,1),(WeekStart=\"PON\")+1)+1","v":"2018-04-01"},"2018-04-02","2018-04-03","2018-04-04","2018-04-05","2018-04-06","2018-04-07"]
[null,null,{"$f":"IF(DAY(DanKalendara)=1,CONCATENATE(\"Tjedan \",WEEKNUM(DanKalendara),\"/Dan \",DanKalendara-DATE(YEAR(DanKalendara),1,0)),CONCATENATE(\"Dan \",DanKalendara-DATE(YEAR(DanKalendara),1,0)))","v":"Tjedan 14/Dan 91"},{"$f":"IF(DAY(DanKalendara)=1,CONCATENATE(\"Tjedan \",WEEKNUM(DanKalendara),\"/Dan \",DanKalendara-DATE(YEAR(DanKalendara),1,0)),CONCATENATE(\"Dan \",DanKalendara-DATE(YEAR(DanKalendara),1,0)))","v":"Dan 92"},{"$f":"IF(DAY(DanKalendara)=1,CONCATENATE(\"Tjedan \",WEEKNUM(DanKalendara),\"/Dan \",DanKalendara-DATE(YEAR(DanKalendara),1,0)),CONCATENATE(\"Dan \",DanKalendara-DATE(YEAR(DanKalendara),1,0)))","v":"Dan 93"},{"$f":"IF(DAY(DanKalendara)=1,CONCATENATE(\"Tjedan \",WEEKNUM(DanKalendara),\"/Dan \",DanKalendara-DATE(YEAR(DanKalendara),1,0)),CONCATENATE(\"Dan \",DanKalendara-DATE(YEAR(DanKalendara),1,0)))","v":"Dan 94"},{"$f":"IF(DAY(DanKalendara)=1,CONCATENATE(\"Tjedan \",WEEKNUM(DanKalendara),\"/Dan \",DanKalendara-DATE(YEAR(DanKalendara),1,0)),CONCATENATE(\"Dan \",DanKalendara-DATE(YEAR(DanKalendara),1,0)))","v":"Dan 95"},{"$f":"IF(DAY(DanKalendara)=1,CONCATENATE(\"Tjedan \",WEEKNUM(DanKalendara),\"/Dan \",DanKalendara-DATE(YEAR(DanKalendara),1,0)),CONCATENATE(\"Dan \",DanKalendara-DATE(YEAR(DanKalendara),1,0)))","v":"Dan 96"},{"$f":"IF(DAY(DanKalendara)=1,CONCATENATE(\"Tjedan \",WEEKNUM(DanKalendara),\"/Dan \",DanKalendara-DATE(YEAR(DanKalendara),1,0)),CONCATENATE(\"Dan \",DanKalendara-DATE(YEAR(DanKalendara),1,0)))","v":"Dan 97"}]
[]
[null,null,{"$f":"DaysAndWeeks+DATE(KalendarskaGodina,4,1)-WEEKDAY(DATE(KalendarskaGodina,4,1),(WeekStart=\"PON\")+1)+8","v":"2018-04-08"},"2018-04-09","2018-04-10","2018-04-11","2018-04-12","2018-04-13","2018-04-14"]
[null,null,{"$f":"IF(WEEKDAY(DanKalendara)=WeekStartValue,CONCATENATE(\"Tjedan \",WEEKNUM(DanKalendara),\"/Dan \",DanKalendara-DATE(YEAR(DanKalendara),1,0)),CONCATENATE(\"Dan \",DanKalendara-DATE(YEAR(DanKalendara),1,0)))","v":"Tjedan 15/Dan 98"},{"$f":"IF(WEEKDAY(DanKalendara)=WeekStartValue,CONCATENATE(\"Tjedan \",WEEKNUM(DanKalendara),\"/Dan \",DanKalendara-DATE(YEAR(DanKalendara),1,0)),CONCATENATE(\"Dan \",DanKalendara-DATE(YEAR(DanKalendara),1,0)))","v":"Dan 99"},{"$f":"IF(WEEKDAY(DanKalendara)=WeekStartValue,CONCATENATE(\"Tjedan \",WEEKNUM(DanKalendara),\"/Dan \",DanKalendara-DATE(YEAR(DanKalendara),1,0)),CONCATENATE(\"Dan \",DanKalendara-DATE(YEAR(DanKalendara),1,0)))","v":"Dan 100"},{"$f":"IF(WEEKDAY(DanKalendara)=WeekStartValue,CONCATENATE(\"Tjedan \",WEEKNUM(DanKalendara),\"/Dan \",DanKalendara-DATE(YEAR(DanKalendara),1,0)),CONCATENATE(\"Dan \",DanKalendara-DATE(YEAR(DanKalendara),1,0)))","v":"Dan 101"},{"$f":"IF(WEEKDAY(DanKalendara)=WeekStartValue,CONCATENATE(\"Tjedan \",WEEKNUM(DanKalendara),\"/Dan \",DanKalendara-DATE(YEAR(DanKalendara),1,0)),CONCATENATE(\"Dan \",DanKalendara-DATE(YEAR(DanKalendara),1,0)))","v":"Dan 102"},{"$f":"IF(WEEKDAY(DanKalendara)=WeekStartValue,CONCATENATE(\"Tjedan \",WEEKNUM(DanKalendara),\"/Dan \",DanKalendara-DATE(YEAR(DanKalendara),1,0)),CONCATENATE(\"Dan \",DanKalendara-DATE(YEAR(DanKalendara),1,0)))","v":"Dan 103"},{"$f":"IF(WEEKDAY(DanKalendara)=WeekStartValue,CONCATENATE(\"Tjedan \",WEEKNUM(DanKalendara),\"/Dan \",DanKalendara-DATE(YEAR(DanKalendara),1,0)),CONCATENATE(\"Dan \",DanKalendara-DATE(YEAR(DanKalendara),1,0)))","v":"Dan 104"}]
[]
[null,null,{"$f":"DaysAndWeeks+DATE(KalendarskaGodina,4,1)-WEEKDAY(DATE(KalendarskaGodina,4,1),(WeekStart=\"PON\")+1)+15","v":"2018-04-15"},"2018-04-16","2018-04-17","2018-04-18","2018-04-19","2018-04-20","2018-04-21"]
[null,null,{"$f":"IF(WEEKDAY(DanKalendara)=WeekStartValue,CONCATENATE(\"Tjedan \",WEEKNUM(DanKalendara),\"/Dan \",DanKalendara-DATE(YEAR(DanKalendara),1,0)),CONCATENATE(\"Dan \",DanKalendara-DATE(YEAR(DanKalendara),1,0)))","v":"Tjedan 16/Dan 105"},{"$f":"IF(WEEKDAY(DanKalendara)=WeekStartValue,CONCATENATE(\"Tjedan \",WEEKNUM(DanKalendara),\"/Dan \",DanKalendara-DATE(YEAR(DanKalendara),1,0)),CONCATENATE(\"Dan \",DanKalendara-DATE(YEAR(DanKalendara),1,0)))","v":"Dan 106"},{"$f":"IF(WEEKDAY(DanKalendara)=WeekStartValue,CONCATENATE(\"Tjedan \",WEEKNUM(DanKalendara),\"/Dan \",DanKalendara-DATE(YEAR(DanKalendara),1,0)),CONCATENATE(\"Dan \",DanKalendara-DATE(YEAR(DanKalendara),1,0)))","v":"Dan 107"},{"$f":"IF(WEEKDAY(DanKalendara)=WeekStartValue,CONCATENATE(\"Tjedan \",WEEKNUM(DanKalendara),\"/Dan \",DanKalendara-DATE(YEAR(DanKalendara),1,0)),CONCATENATE(\"Dan \",DanKalendara-DATE(YEAR(DanKalendara),1,0)))","v":"Dan 108"},{"$f":"IF(WEEKDAY(DanKalendara)=WeekStartValue,CONCATENATE(\"Tjedan \",WEEKNUM(DanKalendara),\"/Dan \",DanKalendara-DATE(YEAR(DanKalendara),1,0)),CONCATENATE(\"Dan \",DanKalendara-DATE(YEAR(DanKalendara),1,0)))","v":"Dan 109"},{"$f":"IF(WEEKDAY(DanKalendara)=WeekStartValue,CONCATENATE(\"Tjedan \",WEEKNUM(DanKalendara),\"/Dan \",DanKalendara-DATE(YEAR(DanKalendara),1,0)),CONCATENATE(\"Dan \",DanKalendara-DATE(YEAR(DanKalendara),1,0)))","v":"Dan 110"},{"$f":"IF(WEEKDAY(DanKalendara)=WeekStartValue,CONCATENATE(\"Tjedan \",WEEKNUM(DanKalendara),\"/Dan \",DanKalendara-DATE(YEAR(DanKalendara),1,0)),CONCATENATE(\"Dan \",DanKalendara-DATE(YEAR(DanKalendara),1,0)))","v":"Dan 111"}]
[]
[null,null,{"$f":"DaysAndWeeks+DATE(KalendarskaGodina,4,1)-WEEKDAY(DATE(KalendarskaGodina,4,1),(WeekStart=\"PON\")+1)+22","v":"2018-04-22"},"2018-04-23","2018-04-24","2018-04-25","2018-04-26","2018-04-27","2018-04-28"]
[null,null,{"$f":"IF(WEEKDAY(DanKalendara)=WeekStartValue,CONCATENATE(\"Tjedan \",WEEKNUM(DanKalendara),\"/Dan \",DanKalendara-DATE(YEAR(DanKalendara),1,0)),CONCATENATE(\"Dan \",DanKalendara-DATE(YEAR(DanKalendara),1,0)))","v":"Tjedan 17/Dan 112"},{"$f":"IF(WEEKDAY(DanKalendara)=WeekStartValue,CONCATENATE(\"Tjedan \",WEEKNUM(DanKalendara),\"/Dan \",DanKalendara-DATE(YEAR(DanKalendara),1,0)),CONCATENATE(\"Dan \",DanKalendara-DATE(YEAR(DanKalendara),1,0)))","v":"Dan 113"},{"$f":"IF(WEEKDAY(DanKalendara)=WeekStartValue,CONCATENATE(\"Tjedan \",WEEKNUM(DanKalendara),\"/Dan \",DanKalendara-DATE(YEAR(DanKalendara),1,0)),CONCATENATE(\"Dan \",DanKalendara-DATE(YEAR(DanKalendara),1,0)))","v":"Dan 114"},{"$f":"IF(WEEKDAY(DanKalendara)=WeekStartValue,CONCATENATE(\"Tjedan \",WEEKNUM(DanKalendara),\"/Dan \",DanKalendara-DATE(YEAR(DanKalendara),1,0)),CONCATENATE(\"Dan \",DanKalendara-DATE(YEAR(DanKalendara),1,0)))","v":"Dan 115"},{"$f":"IF(WEEKDAY(DanKalendara)=WeekStartValue,CONCATENATE(\"Tjedan \",WEEKNUM(DanKalendara),\"/Dan \",DanKalendara-DATE(YEAR(DanKalendara),1,0)),CONCATENATE(\"Dan \",DanKalendara-DATE(YEAR(DanKalendara),1,0)))","v":"Dan 116"},{"$f":"IF(WEEKDAY(DanKalendara)=WeekStartValue,CONCATENATE(\"Tjedan \",WEEKNUM(DanKalendara),\"/Dan \",DanKalendara-DATE(YEAR(DanKalendara),1,0)),CONCATENATE(\"Dan \",DanKalendara-DATE(YEAR(DanKalendara),1,0)))","v":"Dan 117"},{"$f":"IF(WEEKDAY(DanKalendara)=WeekStartValue,CONCATENATE(\"Tjedan \",WEEKNUM(DanKalendara),\"/Dan \",DanKalendara-DATE(YEAR(DanKalendara),1,0)),CONCATENATE(\"Dan \",DanKalendara-DATE(YEAR(DanKalendara),1,0)))","v":"Dan 118"}]
[]
[null,null,{"$f":"DaysAndWeeks+DATE(KalendarskaGodina,4,1)-WEEKDAY(DATE(KalendarskaGodina,4,1),(WeekStart=\"PON\")+1)+29","v":"2018-04-29"},"2018-04-30","2018-05-01","2018-05-02","2018-05-03","2018-05-04","2018-05-05"]
[null,null,{"$f":"IF(WEEKDAY(DanKalendara)=WeekStartValue,CONCATENATE(\"Tjedan \",WEEKNUM(DanKalendara),\"/Dan \",DanKalendara-DATE(YEAR(DanKalendara),1,0)),CONCATENATE(\"Dan \",DanKalendara-DATE(YEAR(DanKalendara),1,0)))","v":"Tjedan 18/Dan 119"},{"$f":"IF(WEEKDAY(DanKalendara)=WeekStartValue,CONCATENATE(\"Tjedan \",WEEKNUM(DanKalendara),\"/Dan \",DanKalendara-DATE(YEAR(DanKalendara),1,0)),CONCATENATE(\"Dan \",DanKalendara-DATE(YEAR(DanKalendara),1,0)))","v":"Dan 120"},{"$f":"IF(WEEKDAY(DanKalendara)=WeekStartValue,CONCATENATE(\"Tjedan \",WEEKNUM(DanKalendara),\"/Dan \",DanKalendara-DATE(YEAR(DanKalendara),1,0)),CONCATENATE(\"Dan \",DanKalendara-DATE(YEAR(DanKalendara),1,0)))","v":"Dan 121"},{"$f":"IF(WEEKDAY(DanKalendara)=WeekStartValue,CONCATENATE(\"Tjedan \",WEEKNUM(DanKalendara),\"/Dan \",DanKalendara-DATE(YEAR(DanKalendara),1,0)),CONCATENATE(\"Dan \",DanKalendara-DATE(YEAR(DanKalendara),1,0)))","v":"Dan 122"},{"$f":"IF(WEEKDAY(DanKalendara)=WeekStartValue,CONCATENATE(\"Tjedan \",WEEKNUM(DanKalendara),\"/Dan \",DanKalendara-DATE(YEAR(DanKalendara),1,0)),CONCATENATE(\"Dan \",DanKalendara-DATE(YEAR(DanKalendara),1,0)))","v":"Dan 123"},{"$f":"IF(WEEKDAY(DanKalendara)=WeekStartValue,CONCATENATE(\"Tjedan \",WEEKNUM(DanKalendara),\"/Dan \",DanKalendara-DATE(YEAR(DanKalendara),1,0)),CONCATENATE(\"Dan \",DanKalendara-DATE(YEAR(DanKalendara),1,0)))","v":"Dan 124"},{"$f":"IF(WEEKDAY(DanKalendara)=WeekStartValue,CONCATENATE(\"Tjedan \",WEEKNUM(DanKalendara),\"/Dan \",DanKalendara-DATE(YEAR(DanKalendara),1,0)),CONCATENATE(\"Dan \",DanKalendara-DATE(YEAR(DanKalendara),1,0)))","v":"Dan 125"}]
[{"$nulls":4},"BILJEŠKE"]
[]
[null,null,{"$f":"DaysAndWeeks+DATE(KalendarskaGodina,4,1)-WEEKDAY(DATE(KalendarskaGodina,4,1),(WeekStart=\"PON\")+1)+36","v":"2018-05-06"},"2018-05-07"]
[null,null,{"$f":"IF(WEEKDAY(DanKalendara)=WeekStartValue,CONCATENATE(\"Tjedan \",WEEKNUM(DanKalendara),\"/Dan \",DanKalendara-DATE(YEAR(DanKalendara),1,0)),CONCATENATE(\"Dan \",DanKalendara-DATE(YEAR(DanKalendara),1,0)))","v":"Tjedan 19/Dan 126"},{"$f":"IF(WEEKDAY(DanKalendara)=WeekStartValue,CONCATENATE(\"Tjedan \",WEEKNUM(DanKalendara),\"/Dan \",DanKalendara-DATE(YEAR(DanKalendara),1,0)),CONCATENATE(\"Dan \",DanKalendara-DATE(YEAR(DanKalendara),1,0)))","v":"Dan 127"}]

{"sheet":"SVI","index":4,"n_rows":20,"n_cols":9,"rows_kept":20,"merged":[[16,2,17,2],[17,4,19,8]]}
[null,"SVI",{"$f":"UPPER(TEXT(WeekStart,\"ddd\"))","v":"NED"},{"$f":"UPPER(TEXT(D3,\"aaa\"))","v":"PON"},"UTO","SRI","ČET","PET","SUB"]
[null,{"$f":"KalendarskaGodina","v":2018}]
[null,null,{"$f":"DaysAndWeeks+DATE(KalendarskaGodina,5,1)-WEEKDAY(DATE(KalendarskaGodina,5,1),(WeekStart=\"PON\")+1)+1","v":"2018-04-29"},"2018-04-30","2018-05-01","2018-05-02","2018-05-03","2018-05-04","2018-05-05"]
[null,null,{"$f":"IF(DAY(DanKalendara)=1,CONCATENATE(\"Tjedan \",WEEKNUM(DanKalendara),\"/Dan \",DanKalendara-DATE(YEAR(DanKalendara),1,0)),CONCATENATE(\"Dan \",DanKalendara-DATE(YEAR(DanKalendara),1,0)))","v":"Dan 119"},{"$f":"IF(DAY(DanKalendara)=1,CONCATENATE(\"Tjedan \",WEEKNUM(DanKalendara),\"/Dan \",DanKalendara-DATE(YEAR(DanKalendara),1,0)),CONCATENATE(\"Dan \",DanKalendara-DATE(YEAR(DanKalendara),1,0)))","v":"Dan 120"},{"$f":"IF(DAY(DanKalendara)=1,CONCATENATE(\"Tjedan \",WEEKNUM(DanKalendara),\"/Dan \",DanKalendara-DATE(YEAR(DanKalendara),1,0)),CONCATENATE(\"Dan \",DanKalendara-DATE(YEAR(DanKalendara),1,0)))","v":"Tjedan 18/Dan 121"},{"$f":"IF(DAY(DanKalendara)=1,CONCATENATE(\"Tjedan \",WEEKNUM(DanKalendara),\"/Dan \",DanKalendara-DATE(YEAR(DanKalendara),1,0)),CONCATENATE(\"Dan \",DanKalendara-DATE(YEAR(DanKalendara),1,0)))","v":"Dan 122"},{"$f":"IF(DAY(DanKalendara)=1,CONCATENATE(\"Tjedan \",WEEKNUM(DanKalendara),\"/Dan \",DanKalendara-DATE(YEAR(DanKalendara),1,0)),CONCATENATE(\"Dan \",DanKalendara-DATE(YEAR(DanKalendara),1,0)))","v":"Dan 123"},{"$f":"IF(DAY(DanKalendara)=1,CONCATENATE(\"Tjedan \",WEEKNUM(DanKalendara),\"/Dan \",DanKalendara-DATE(YEAR(DanKalendara),1,0)),CONCATENATE(\"Dan \",DanKalendara-DATE(YEAR(DanKalendara),1,0)))","v":"Dan 124"},{"$f":"IF(DAY(DanKalendara)=1,CONCATENATE(\"Tjedan \",WEEKNUM(DanKalendara),\"/Dan \",DanKalendara-DATE(YEAR(DanKalendara),1,0)),CONCATENATE(\"Dan \",DanKalendara-DATE(YEAR(DanKalendara),1,0)))","v":"Dan 125"}]
[]
[null,null,{"$f":"DaysAndWeeks+DATE(KalendarskaGodina,5,1)-WEEKDAY(DATE(KalendarskaGodina,5,1),(WeekStart=\"PON\")+1)+8","v":"2018-05-06"},"2018-05-07","2018-05-08","2018-05-09","2018-05-10","2018-05-11","2018-05-12"]
[null,null,{"$f":"IF(WEEKDAY(DanKalendara)=WeekStartValue,CONCATENATE(\"Tjedan \",WEEKNUM(DanKalendara),\"/Dan \",DanKalendara-DATE(YEAR(DanKalendara),1,0)),CONCATENATE(\"Dan \",DanKalendara-DATE(YEAR(DanKalendara),1,0)))","v":"Tjedan 19/Dan 126"},{"$f":"IF(WEEKDAY(DanKalendara)=WeekStartValue,CONCATENATE(\"Tjedan \",WEEKNUM(DanKalendara),\"/Dan \",DanKalendara-DATE(YEAR(DanKalendara),1,0)),CONCATENATE(\"Dan \",DanKalendara-DATE(YEAR(DanKalendara),1,0)))","v":"Dan 127"},{"$f":"IF(WEEKDAY(DanKalendara)=WeekStartValue,CONCATENATE(\"Tjedan \",WEEKNUM(DanKalendara),\"/Dan \",DanKalendara-DATE(YEAR(DanKalendara),1,0)),CONCATENATE(\"Dan \",DanKalendara-DATE(YEAR(DanKalendara),1,0)))","v":"Dan 128"},{"$f":"IF(WEEKDAY(DanKalendara)=WeekStartValue,CONCATENATE(\"Tjedan \",WEEKNUM(DanKalendara),\"/Dan \",DanKalendara-DATE(YEAR(DanKalendara),1,0)),CONCATENATE(\"Dan \",DanKalendara-DATE(YEAR(DanKalendara),1,0)))","v":"Dan 129"},{"$f":"IF(WEEKDAY(DanKalendara)=WeekStartValue,CONCATENATE(\"Tjedan \",WEEKNUM(DanKalendara),\"/Dan \",DanKalendara-DATE(YEAR(DanKalendara),1,0)),CONCATENATE(\"Dan \",DanKalendara-DATE(YEAR(DanKalendara),1,0)))","v":"Dan 130"},{"$f":"IF(WEEKDAY(DanKalendara)=WeekStartValue,CONCATENATE(\"Tjedan \",WEEKNUM(DanKalendara),\"/Dan \",DanKalendara-DATE(YEAR(DanKalendara),1,0)),CONCATENATE(\"Dan \",DanKalendara-DATE(YEAR(DanKalendara),1,0)))","v":"Dan 131"},{"$f":"IF(WEEKDAY(DanKalendara)=WeekStartValue,CONCATENATE(\"Tjedan \",WEEKNUM(DanKalendara),\"/Dan \",DanKalendara-DATE(YEAR(DanKalendara),1,0)),CONCATENATE(\"Dan \",DanKalendara-DATE(YEAR(DanKalendara),1,0)))","v":"Dan 132"}]
[]
[null,null,{"$f":"DaysAndWeeks+DATE(KalendarskaGodina,5,1)-WEEKDAY(DATE(KalendarskaGodina,5,1),(WeekStart=\"PON\")+1)+15","v":"2018-05-13"},"2018-05-14","2018-05-15","2018-05-16","2018-05-17","2018-05-18","2018-05-19"]
[null,null,{"$f":"IF(WEEKDAY(DanKalendara)=WeekStartValue,CONCATENATE(\"Tjedan \",WEEKNUM(DanKalendara),\"/Dan \",DanKalendara-DATE(YEAR(DanKalendara),1,0)),CONCATENATE(\"Dan \",DanKalendara-DATE(YEAR(DanKalendara),1,0)))","v":"Tjedan 20/Dan 133"},{"$f":"IF(WEEKDAY(DanKalendara)=WeekStartValue,CONCATENATE(\"Tjedan \",WEEKNUM(DanKalendara),\"/Dan \",DanKalendara-DATE(YEAR(DanKalendara),1,0)),CONCATENATE(\"Dan \",DanKalendara-DATE(YEAR(DanKalendara),1,0)))","v":"Dan 134"},{"$f":"IF(WEEKDAY(DanKalendara)=WeekStartValue,CONCATENATE(\"Tjedan \",WEEKNUM(DanKalendara),\"/Dan \",DanKalendara-DATE(YEAR(DanKalendara),1,0)),CONCATENATE(\"Dan \",DanKalendara-DATE(YEAR(DanKalendara),1,0)))","v":"Dan 135"},{"$f":"IF(WEEKDAY(DanKalendara)=WeekStartValue,CONCATENATE(\"Tjedan \",WEEKNUM(DanKalendara),\"/Dan \",DanKalendara-DATE(YEAR(DanKalendara),1,0)),CONCATENATE(\"Dan \",DanKalendara-DATE(YEAR(DanKalendara),1,0)))","v":"Dan 136"},{"$f":"IF(WEEKDAY(DanKalendara)=WeekStartValue,CONCATENATE(\"Tjedan \",WEEKNUM(DanKalendara),\"/Dan \",DanKalendara-DATE(YEAR(DanKalendara),1,0)),CONCATENATE(\"Dan \",DanKalendara-DATE(YEAR(DanKalendara),1,0)))","v":"Dan 137"},{"$f":"IF(WEEKDAY(DanKalendara)=WeekStartValue,CONCATENATE(\"Tjedan \",WEEKNUM(DanKalendara),\"/Dan \",DanKalendara-DATE(YEAR(DanKalendara),1,0)),CONCATENATE(\"Dan \",DanKalendara-DATE(YEAR(DanKalendara),1,0)))","v":"Dan 138"},{"$f":"IF(WEEKDAY(DanKalendara)=WeekStartValue,CONCATENATE(\"Tjedan \",WEEKNUM(DanKalendara),\"/Dan \",DanKalendara-DATE(YEAR(DanKalendara),1,0)),CONCATENATE(\"Dan \",DanKalendara-DATE(YEAR(DanKalendara),1,0)))","v":"Dan 139"}]
[]
[null,null,{"$f":"DaysAndWeeks+DATE(KalendarskaGodina,5,1)-WEEKDAY(DATE(KalendarskaGodina,5,1),(WeekStart=\"PON\")+1)+22","v":"2018-05-20"},"2018-05-21","2018-05-22","2018-05-23","2018-05-24","2018-05-25","2018-05-26"]
[null,null,{"$f":"IF(WEEKDAY(DanKalendara)=WeekStartValue,CONCATENATE(\"Tjedan \",WEEKNUM(DanKalendara),\"/Dan \",DanKalendara-DATE(YEAR(DanKalendara),1,0)),CONCATENATE(\"Dan \",DanKalendara-DATE(YEAR(DanKalendara),1,0)))","v":"Tjedan 21/Dan 140"},{"$f":"IF(WEEKDAY(DanKalendara)=WeekStartValue,CONCATENATE(\"Tjedan \",WEEKNUM(DanKalendara),\"/Dan \",DanKalendara-DATE(YEAR(DanKalendara),1,0)),CONCATENATE(\"Dan \",DanKalendara-DATE(YEAR(DanKalendara),1,0)))","v":"Dan 141"},{"$f":"IF(WEEKDAY(DanKalendara)=WeekStartValue,CONCATENATE(\"Tjedan \",WEEKNUM(DanKalendara),\"/Dan \",DanKalendara-DATE(YEAR(DanKalendara),1,0)),CONCATENATE(\"Dan \",DanKalendara-DATE(YEAR(DanKalendara),1,0)))","v":"Dan 142"},{"$f":"IF(WEEKDAY(DanKalendara)=WeekStartValue,CONCATENATE(\"Tjedan \",WEEKNUM(DanKalendara),\"/Dan \",DanKalendara-DATE(YEAR(DanKalendara),1,0)),CONCATENATE(\"Dan \",DanKalendara-DATE(YEAR(DanKalendara),1,0)))","v":"Dan 143"},{"$f":"IF(WEEKDAY(DanKalendara)=WeekStartValue,CONCATENATE(\"Tjedan \",WEEKNUM(DanKalendara),\"/Dan \",DanKalendara-DATE(YEAR(DanKalendara),1,0)),CONCATENATE(\"Dan \",DanKalendara-DATE(YEAR(DanKalendara),1,0)))","v":"Dan 144"},{"$f":"IF(WEEKDAY(DanKalendara)=WeekStartValue,CONCATENATE(\"Tjedan \",WEEKNUM(DanKalendara),\"/Dan \",DanKalendara-DATE(YEAR(DanKalendara),1,0)),CONCATENATE(\"Dan \",DanKalendara-DATE(YEAR(DanKalendara),1,0)))","v":"Dan 145"},{"$f":"IF(WEEKDAY(DanKalendara)=WeekStartValue,CONCATENATE(\"Tjedan \",WEEKNUM(DanKalendara),\"/Dan \",DanKalendara-DATE(YEAR(DanKalendara),1,0)),CONCATENATE(\"Dan \",DanKalendara-DATE(YEAR(DanKalendara),1,0)))","v":"Dan 146"}]
[]
[null,null,{"$f":"DaysAndWeeks+DATE(KalendarskaGodina,5,1)-WEEKDAY(DATE(KalendarskaGodina,5,1),(WeekStart=\"PON\")+1)+29","v":"2018-05-27"},"2018-05-28","2018-05-29","2018-05-30","2018-05-31","2018-06-01","2018-06-02"]
[null,null,{"$f":"IF(WEEKDAY(DanKalendara)=WeekStartValue,CONCATENATE(\"Tjedan \",WEEKNUM(DanKalendara),\"/Dan \",DanKalendara-DATE(YEAR(DanKalendara),1,0)),CONCATENATE(\"Dan \",DanKalendara-DATE(YEAR(DanKalendara),1,0)))","v":"Tjedan 22/Dan 147"},{"$f":"IF(WEEKDAY(DanKalendara)=WeekStartValue,CONCATENATE(\"Tjedan \",WEEKNUM(DanKalendara),\"/Dan \",DanKalendara-DATE(YEAR(DanKalendara),1,0)),CONCATENATE(\"Dan \",DanKalendara-DATE(YEAR(DanKalendara),1,0)))","v":"Dan 148"},{"$f":"IF(WEEKDAY(DanKalendara)=WeekStartValue,CONCATENATE(\"Tjedan \",WEEKNUM(DanKalendara),\"/Dan \",DanKalendara-DATE(YEAR(DanKalendara),1,0)),CONCATENATE(\"Dan \",DanKalendara-DATE(YEAR(DanKalendara),1,0)))","v":"Dan 149"},{"$f":"IF(WEEKDAY(DanKalendara)=WeekStartValue,CONCATENATE(\"Tjedan \",WEEKNUM(DanKalendara),\"/Dan \",DanKalendara-DATE(YEAR(DanKalendara),1,0)),CONCATENATE(\"Dan \",DanKalendara-DATE(YEAR(DanKalendara),1,0)))","v":"Dan 150"},{"$f":"IF(WEEKDAY(DanKalendara)=WeekStartValue,CONCATENATE(\"Tjedan \",WEEKNUM(DanKalendara),\"/Dan \",DanKalendara-DATE(YEAR(DanKalendara),1,0)),CONCATENATE(\"Dan \",DanKalendara-DATE(YEAR(DanKalendara),1,0)))","v":"Dan 151"},{"$f":"IF(WEEKDAY(DanKalendara)=WeekStartValue,CONCATENATE(\"Tjedan \",WEEKNUM(DanKalendara),\"/Dan \",DanKalendara-DATE(YEAR(DanKalendara),1,0)),CONCATENATE(\"Dan \",DanKalendara-DATE(YEAR(DanKalendara),1,0)))","v":"Dan 152"},{"$f":"IF(WEEKDAY(DanKalendara)=WeekStartValue,CONCATENATE(\"Tjedan \",WEEKNUM(DanKalendara),\"/Dan \",DanKalendara-DATE(YEAR(DanKalendara),1,0)),CONCATENATE(\"Dan \",DanKalendara-DATE(YEAR(DanKalendara),1,0)))","v":"Dan 153"}]
[{"$nulls":4},"BILJEŠKE"]
[]
[null,null,{"$f":"DaysAndWeeks+DATE(KalendarskaGodina,5,1)-WEEKDAY(DATE(KalendarskaGodina,5,1),(WeekStart=\"PON\")+1)+36","v":"2018-06-03"},"2018-06-04"]
[null,null,{"$f":"IF(WEEKDAY(DanKalendara)=WeekStartValue,CONCATENATE(\"Tjedan \",WEEKNUM(DanKalendara),\"/Dan \",DanKalendara-DATE(YEAR(DanKalendara),1,0)),CONCATENATE(\"Dan \",DanKalendara-DATE(YEAR(DanKalendara),1,0)))","v":"Tjedan 23/Dan 154"},{"$f":"IF(WEEKDAY(DanKalendara)=WeekStartValue,CONCATENATE(\"Tjedan \",WEEKNUM(DanKalendara),\"/Dan \",DanKalendara-DATE(YEAR(DanKalendara),1,0)),CONCATENATE(\"Dan \",DanKalendara-DATE(YEAR(DanKalendara),1,0)))","v":"Dan 155"}]

{"sheet":"LIP","index":5,"n_rows":20,"n_cols":9,"rows_kept":20,"merged":[[16,2,17,2],[17,4,19,8]]}
[null,"LIP",{"$f":"UPPER(TEXT(WeekStart,\"ddd\"))","v":"NED"},{"$f":"UPPER(TEXT(D3,\"aaa\"))","v":"PON"},"UTO","SRI","ČET","PET","SUB"]
[null,{"$f":"KalendarskaGodina","v":2018}]
[null,null,{"$f":"DaysAndWeeks+DATE(KalendarskaGodina,6,1)-WEEKDAY(DATE(KalendarskaGodina,6,1),(WeekStart=\"PON\")+1)+1","v":"2018-05-27"},"2018-05-28","2018-05-29","2018-05-30","2018-05-31","2018-06-01","2018-06-02"]
[null,null,{"$f":"IF(DAY(DanKalendara)=1,CONCATENATE(\"Tjedan \",WEEKNUM(DanKalendara),\"/Dan \",DanKalendara-DATE(YEAR(DanKalendara),1,0)),CONCATENATE(\"Dan \",DanKalendara-DATE(YEAR(DanKalendara),1,0)))","v":"Dan 147"},{"$f":"IF(DAY(DanKalendara)=1,CONCATENATE(\"Tjedan \",WEEKNUM(DanKalendara),\"/Dan \",DanKalendara-DATE(YEAR(DanKalendara),1,0)),CONCATENATE(\"Dan \",DanKalendara-DATE(YEAR(DanKalendara),1,0)))","v":"Dan 148"},{"$f":"IF(DAY(DanKalendara)=1,CONCATENATE(\"Tjedan \",WEEKNUM(DanKalendara),\"/Dan \",DanKalendara-DATE(YEAR(DanKalendara),1,0)),CONCATENATE(\"Dan \",DanKalendara-DATE(YEAR(DanKalendara),1,0)))","v":"Dan 149"},{"$f":"IF(DAY(DanKalendara)=1,CONCATENATE(\"Tjedan \",WEEKNUM(DanKalendara),\"/Dan \",DanKalendara-DATE(YEAR(DanKalendara),1,0)),CONCATENATE(\"Dan \",DanKalendara-DATE(YEAR(DanKalendara),1,0)))","v":"Dan 150"},{"$f":"IF(DAY(DanKalendara)=1,CONCATENATE(\"Tjedan \",WEEKNUM(DanKalendara),\"/Dan \",DanKalendara-DATE(YEAR(DanKalendara),1,0)),CONCATENATE(\"Dan \",DanKalendara-DATE(YEAR(DanKalendara),1,0)))","v":"Dan 151"},{"$f":"IF(DAY(DanKalendara)=1,CONCATENATE(\"Tjedan \",WEEKNUM(DanKalendara),\"/Dan \",DanKalendara-DATE(YEAR(DanKalendara),1,0)),CONCATENATE(\"Dan \",DanKalendara-DATE(YEAR(DanKalendara),1,0)))","v":"Tjedan 22/Dan 152"},{"$f":"IF(DAY(DanKalendara)=1,CONCATENATE(\"Tjedan \",WEEKNUM(DanKalendara),\"/Dan \",DanKalendara-DATE(YEAR(DanKalendara),1,0)),CONCATENATE(\"Dan \",DanKalendara-DATE(YEAR(DanKalendara),1,0)))","v":"Dan 153"}]
[]
[null,null,{"$f":"DaysAndWeeks+DATE(KalendarskaGodina,6,1)-WEEKDAY(DATE(KalendarskaGodina,6,1),(WeekStart=\"PON\")+1)+8","v":"2018-06-03"},"2018-06-04","2018-06-05","2018-06-06","2018-06-07","2018-06-08","2018-06-09"]
[null,null,{"$f":"IF(WEEKDAY(DanKalendara)=WeekStartValue,CONCATENATE(\"Tjedan \",WEEKNUM(DanKalendara),\"/Dan \",DanKalendara-DATE(YEAR(DanKalendara),1,0)),CONCATENATE(\"Dan \",DanKalendara-DATE(YEAR(DanKalendara),1,0)))","v":"Tjedan 23/Dan 154"},{"$f":"IF(WEEKDAY(DanKalendara)=WeekStartValue,CONCATENATE(\"Tjedan \",WEEKNUM(DanKalendara),\"/Dan \",DanKalendara-DATE(YEAR(DanKalendara),1,0)),CONCATENATE(\"Dan \",DanKalendara-DATE(YEAR(DanKalendara),1,0)))","v":"Dan 155"},{"$f":"IF(WEEKDAY(DanKalendara)=WeekStartValue,CONCATENATE(\"Tjedan \",WEEKNUM(DanKalendara),\"/Dan \",DanKalendara-DATE(YEAR(DanKalendara),1,0)),CONCATENATE(\"Dan \",DanKalendara-DATE(YEAR(DanKalendara),1,0)))","v":"Dan 156"},{"$f":"IF(WEEKDAY(DanKalendara)=WeekStartValue,CONCATENATE(\"Tjedan \",WEEKNUM(DanKalendara),\"/Dan \",DanKalendara-DATE(YEAR(DanKalendara),1,0)),CONCATENATE(\"Dan \",DanKalendara-DATE(YEAR(DanKalendara),1,0)))","v":"Dan 157"},{"$f":"IF(WEEKDAY(DanKalendara)=WeekStartValue,CONCATENATE(\"Tjedan \",WEEKNUM(DanKalendara),\"/Dan \",DanKalendara-DATE(YEAR(DanKalendara),1,0)),CONCATENATE(\"Dan \",DanKalendara-DATE(YEAR(DanKalendara),1,0)))","v":"Dan 158"},{"$f":"IF(WEEKDAY(DanKalendara)=WeekStartValue,CONCATENATE(\"Tjedan \",WEEKNUM(DanKalendara),\"/Dan \",DanKalendara-DATE(YEAR(DanKalendara),1,0)),CONCATENATE(\"Dan \",DanKalendara-DATE(YEAR(DanKalendara),1,0)))","v":"Dan 159"},{"$f":"IF(WEEKDAY(DanKalendara)=WeekStartValue,CONCATENATE(\"Tjedan \",WEEKNUM(DanKalendara),\"/Dan \",DanKalendara-DATE(YEAR(DanKalendara),1,0)),CONCATENATE(\"Dan \",DanKalendara-DATE(YEAR(DanKalendara),1,0)))","v":"Dan 160"}]
[]
[null,null,{"$f":"DaysAndWeeks+DATE(KalendarskaGodina,6,1)-WEEKDAY(DATE(KalendarskaGodina,6,1),(WeekStart=\"PON\")+1)+15","v":"2018-06-10"},"2018-06-11","2018-06-12","2018-06-13","2018-06-14","2018-06-15","2018-06-16"]
[null,null,{"$f":"IF(WEEKDAY(DanKalendara)=WeekStartValue,CONCATENATE(\"Tjedan \",WEEKNUM(DanKalendara),\"/Dan \",DanKalendara-DATE(YEAR(DanKalendara),1,0)),CONCATENATE(\"Dan \",DanKalendara-DATE(YEAR(DanKalendara),1,0)))","v":"Tjedan 24/Dan 161"},{"$f":"IF(WEEKDAY(DanKalendara)=WeekStartValue,CONCATENATE(\"Tjedan \",WEEKNUM(DanKalendara),\"/Dan \",DanKalendara-DATE(YEAR(DanKalendara),1,0)),CONCATENATE(\"Dan \",DanKalendara-DATE(YEAR(DanKalendara),1,0)))","v":"Dan 162"},{"$f":"IF(WEEKDAY(DanKalendara)=WeekStartValue,CONCATENATE(\"Tjedan \",WEEKNUM(DanKalendara),\"/Dan \",DanKalendara-DATE(YEAR(DanKalendara),1,0)),CONCATENATE(\"Dan \",DanKalendara-DATE(YEAR(DanKalendara),1,0)))","v":"Dan 163"},{"$f":"IF(WEEKDAY(DanKalendara)=WeekStartValue,CONCATENATE(\"Tjedan \",WEEKNUM(DanKalendara),\"/Dan \",DanKalendara-DATE(YEAR(DanKalendara),1,0)),CONCATENATE(\"Dan \",DanKalendara-DATE(YEAR(DanKalendara),1,0)))","v":"Dan 164"},{"$f":"IF(WEEKDAY(DanKalendara)=WeekStartValue,CONCATENATE(\"Tjedan \",WEEKNUM(DanKalendara),\"/Dan \",DanKalendara-DATE(YEAR(DanKalendara),1,0)),CONCATENATE(\"Dan \",DanKalendara-DATE(YEAR(DanKalendara),1,0)))","v":"Dan 165"},{"$f":"IF(WEEKDAY(DanKalendara)=WeekStartValue,CONCATENATE(\"Tjedan \",WEEKNUM(DanKalendara),\"/Dan \",DanKalendara-DATE(YEAR(DanKalendara),1,0)),CONCATENATE(\"Dan \",DanKalendara-DATE(YEAR(DanKalendara),1,0)))","v":"Dan 166"},{"$f":"IF(WEEKDAY(DanKalendara)=WeekStartValue,CONCATENATE(\"Tjedan \",WEEKNUM(DanKalendara),\"/Dan \",DanKalendara-DATE(YEAR(DanKalendara),1,0)),CONCATENATE(\"Dan \",DanKalendara-DATE(YEAR(DanKalendara),1,0)))","v":"Dan 167"}]
[]
[null,null,{"$f":"DaysAndWeeks+DATE(KalendarskaGodina,6,1)-WEEKDAY(DATE(KalendarskaGodina,6,1),(WeekStart=\"PON\")+1)+22","v":"2018-06-17"},"2018-06-18","2018-06-19","2018-06-20","2018-06-21","2018-06-22","2018-06-23"]
[null,null,{"$f":"IF(WEEKDAY(DanKalendara)=WeekStartValue,CONCATENATE(\"Tjedan \",WEEKNUM(DanKalendara),\"/Dan \",DanKalendara-DATE(YEAR(DanKalendara),1,0)),CONCATENATE(\"Dan \",DanKalendara-DATE(YEAR(DanKalendara),1,0)))","v":"Tjedan 25/Dan 168"},{"$f":"IF(WEEKDAY(DanKalendara)=WeekStartValue,CONCATENATE(\"Tjedan \",WEEKNUM(DanKalendara),\"/Dan \",DanKalendara-DATE(YEAR(DanKalendara),1,0)),CONCATENATE(\"Dan \",DanKalendara-DATE(YEAR(DanKalendara),1,0)))","v":"Dan 169"},{"$f":"IF(WEEKDAY(DanKalendara)=WeekStartValue,CONCATENATE(\"Tjedan \",WEEKNUM(DanKalendara),\"/Dan \",DanKalendara-DATE(YEAR(DanKalendara),1,0)),CONCATENATE(\"Dan \",DanKalendara-DATE(YEAR(DanKalendara),1,0)))","v":"Dan 170"},{"$f":"IF(WEEKDAY(DanKalendara)=WeekStartValue,CONCATENATE(\"Tjedan \",WEEKNUM(DanKalendara),\"/Dan \",DanKalendara-DATE(YEAR(DanKalendara),1,0)),CONCATENATE(\"Dan \",DanKalendara-DATE(YEAR(DanKalendara),1,0)))","v":"Dan 171"},{"$f":"IF(WEEKDAY(DanKalendara)=WeekStartValue,CONCATENATE(\"Tjedan \",WEEKNUM(DanKalendara),\"/Dan \",DanKalendara-DATE(YEAR(DanKalendara),1,0)),CONCATENATE(\"Dan \",DanKalendara-DATE(YEAR(DanKalendara),1,0)))","v":"Dan 172"},{"$f":"IF(WEEKDAY(DanKalendara)=WeekStartValue,CONCATENATE(\"Tjedan \",WEEKNUM(DanKalendara),\"/Dan \",DanKalendara-DATE(YEAR(DanKalendara),1,0)),CONCATENATE(\"Dan \",DanKalendara-DATE(YEAR(DanKalendara),1,0)))","v":"Dan 173"},{"$f":"IF(WEEKDAY(DanKalendara)=WeekStartValue,CONCATENATE(\"Tjedan \",WEEKNUM(DanKalendara),\"/Dan \",DanKalendara-DATE(YEAR(DanKalendara),1,0)),CONCATENATE(\"Dan \",DanKalendara-DATE(YEAR(DanKalendara),1,0)))","v":"Dan 174"}]
[]
[null,null,{"$f":"DaysAndWeeks+DATE(KalendarskaGodina,6,1)-WEEKDAY(DATE(KalendarskaGodina,6,1),(WeekStart=\"PON\")+1)+29","v":"2018-06-24"},"2018-06-25","2018-06-26","2018-06-27","2018-06-28","2018-06-29","2018-06-30"]
[null,null,{"$f":"IF(WEEKDAY(DanKalendara)=WeekStartValue,CONCATENATE(\"Tjedan \",WEEKNUM(DanKalendara),\"/Dan \",DanKalendara-DATE(YEAR(DanKalendara),1,0)),CONCATENATE(\"Dan \",DanKalendara-DATE(YEAR(DanKalendara),1,0)))","v":"Tjedan 26/Dan 175"},{"$f":"IF(WEEKDAY(DanKalendara)=WeekStartValue,CONCATENATE(\"Tjedan \",WEEKNUM(DanKalendara),\"/Dan \",DanKalendara-DATE(YEAR(DanKalendara),1,0)),CONCATENATE(\"Dan \",DanKalendara-DATE(YEAR(DanKalendara),1,0)))","v":"Dan 176"},{"$f":"IF(WEEKDAY(DanKalendara)=WeekStartValue,CONCATENATE(\"Tjedan \",WEEKNUM(DanKalendara),\"/Dan \",DanKalendara-DATE(YEAR(DanKalendara),1,0)),CONCATENATE(\"Dan \",DanKalendara-DATE(YEAR(DanKalendara),1,0)))","v":"Dan 177"},{"$f":"IF(WEEKDAY(DanKalendara)=WeekStartValue,CONCATENATE(\"Tjedan \",WEEKNUM(DanKalendara),\"/Dan \",DanKalendara-DATE(YEAR(DanKalendara),1,0)),CONCATENATE(\"Dan \",DanKalendara-DATE(YEAR(DanKalendara),1,0)))","v":"Dan 178"},{"$f":"IF(WEEKDAY(DanKalendara)=WeekStartValue,CONCATENATE(\"Tjedan \",WEEKNUM(DanKalendara),\"/Dan \",DanKalendara-DATE(YEAR(DanKalendara),1,0)),CONCATENATE(\"Dan \",DanKalendara-DATE(YEAR(DanKalendara),1,0)))","v":"Dan 179"},{"$f":"IF(WEEKDAY(DanKalendara)=WeekStartValue,CONCATENATE(\"Tjedan \",WEEKNUM(DanKalendara),\"/Dan \",DanKalendara-DATE(YEAR(DanKalendara),1,0)),CONCATENATE(\"Dan \",DanKalendara-DATE(YEAR(DanKalendara),1,0)))","v":"Dan 180"},{"$f":"IF(WEEKDAY(DanKalendara)=WeekStartValue,CONCATENATE(\"Tjedan \",WEEKNUM(DanKalendara),\"/Dan \",DanKalendara-DATE(YEAR(DanKalendara),1,0)),CONCATENATE(\"Dan \",DanKalendara-DATE(YEAR(DanKalendara),1,0)))","v":"Dan 181"}]
[{"$nulls":4},"BILJEŠKE"]
[]
[null,null,{"$f":"DaysAndWeeks+DATE(KalendarskaGodina,6,1)-WEEKDAY(DATE(KalendarskaGodina,6,1),(WeekStart=\"PON\")+1)+36","v":"2018-07-01"},"2018-07-02"]
[null,null,{"$f":"IF(WEEKDAY(DanKalendara)=WeekStartValue,CONCATENATE(\"Tjedan \",WEEKNUM(DanKalendara),\"/Dan \",DanKalendara-DATE(YEAR(DanKalendara),1,0)),CONCATENATE(\"Dan \",DanKalendara-DATE(YEAR(DanKalendara),1,0)))","v":"Tjedan 27/Dan 182"},{"$f":"IF(WEEKDAY(DanKalendara)=WeekStartValue,CONCATENATE(\"Tjedan \",WEEKNUM(DanKalendara),\"/Dan \",DanKalendara-DATE(YEAR(DanKalendara),1,0)),CONCATENATE(\"Dan \",DanKalendara-DATE(YEAR(DanKalendara),1,0)))","v":"Dan 183"}]

{"sheet":"SRP","index":6,"n_rows":20,"n_cols":9,"rows_kept":20,"merged":[[16,2,17,2],[17,4,19,8]]}
[null,"SRP",{"$f":"UPPER(TEXT(WeekStart,\"ddd\"))","v":"NED"},{"$f":"UPPER(TEXT(D3,\"aaa\"))","v":"PON"},"UTO","SRI","ČET","PET","SUB"]
[null,{"$f":"KalendarskaGodina","v":2018}]
[null,null,{"$f":"DaysAndWeeks+DATE(KalendarskaGodina,7,1)-WEEKDAY(DATE(KalendarskaGodina,7,1),(WeekStart=\"PON\")+1)+1","v":"2018-07-01"},"2018-07-02","2018-07-03","2018-07-04","2018-07-05","2018-07-06","2018-07-07"]
[null,null,{"$f":"IF(DAY(DanKalendara)=1,CONCATENATE(\"Tjedan \",WEEKNUM(DanKalendara),\"/Dan \",DanKalendara-DATE(YEAR(DanKalendara),1,0)),CONCATENATE(\"Dan \",DanKalendara-DATE(YEAR(DanKalendara),1,0)))","v":"Tjedan 27/Dan 182"},{"$f":"IF(DAY(DanKalendara)=1,CONCATENATE(\"Tjedan \",WEEKNUM(DanKalendara),\"/Dan \",DanKalendara-DATE(YEAR(DanKalendara),1,0)),CONCATENATE(\"Dan \",DanKalendara-DATE(YEAR(DanKalendara),1,0)))","v":"Dan 183"},{"$f":"IF(DAY(DanKalendara)=1,CONCATENATE(\"Tjedan \",WEEKNUM(DanKalendara),\"/Dan \",DanKalendara-DATE(YEAR(DanKalendara),1,0)),CONCATENATE(\"Dan \",DanKalendara-DATE(YEAR(DanKalendara),1,0)))","v":"Dan 184"},{"$f":"IF(DAY(DanKalendara)=1,CONCATENATE(\"Tjedan \",WEEKNUM(DanKalendara),\"/Dan \",DanKalendara-DATE(YEAR(DanKalendara),1,0)),CONCATENATE(\"Dan \",DanKalendara-DATE(YEAR(DanKalendara),1,0)))","v":"Dan 185"},{"$f":"IF(DAY(DanKalendara)=1,CONCATENATE(\"Tjedan \",WEEKNUM(DanKalendara),\"/Dan \",DanKalendara-DATE(YEAR(DanKalendara),1,0)),CONCATENATE(\"Dan \",DanKalendara-DATE(YEAR(DanKalendara),1,0)))","v":"Dan 186"},{"$f":"IF(DAY(DanKalendara)=1,CONCATENATE(\"Tjedan \",WEEKNUM(DanKalendara),\"/Dan \",DanKalendara-DATE(YEAR(DanKalendara),1,0)),CONCATENATE(\"Dan \",DanKalendara-DATE(YEAR(DanKalendara),1,0)))","v":"Dan 187"},{"$f":"IF(DAY(DanKalendara)=1,CONCATENATE(\"Tjedan \",WEEKNUM(DanKalendara),\"/Dan \",DanKalendara-DATE(YEAR(DanKalendara),1,0)),CONCATENATE(\"Dan \",DanKalendara-DATE(YEAR(DanKalendara),1,0)))","v":"Dan 188"}]
[]
[null,null,{"$f":"DaysAndWeeks+DATE(KalendarskaGodina,7,1)-WEEKDAY(DATE(KalendarskaGodina,7,1),(WeekStart=\"PON\")+1)+8","v":"2018-07-08"},"2018-07-09","2018-07-10","2018-07-11","2018-07-12","2018-07-13","2018-07-14"]
[null,null,{"$f":"IF(WEEKDAY(DanKalendara)=WeekStartValue,CONCATENATE(\"Tjedan \",WEEKNUM(DanKalendara),\"/Dan \",DanKalendara-DATE(YEAR(DanKalendara),1,0)),CONCATENATE(\"Dan \",DanKalendara-DATE(YEAR(DanKalendara),1,0)))","v":"Tjedan 28/Dan 189"},{"$f":"IF(WEEKDAY(DanKalendara)=WeekStartValue,CONCATENATE(\"Tjedan \",WEEKNUM(DanKalendara),\"/Dan \",DanKalendara-DATE(YEAR(DanKalendara),1,0)),CONCATENATE(\"Dan \",DanKalendara-DATE(YEAR(DanKalendara),1,0)))","v":"Dan 190"},{"$f":"IF(WEEKDAY(DanKalendara)=WeekStartValue,CONCATENATE(\"Tjedan \",WEEKNUM(DanKalendara),\"/Dan \",DanKalendara-DATE(YEAR(DanKalendara),1,0)),CONCATENATE(\"Dan \",DanKalendara-DATE(YEAR(DanKalendara),1,0)))","v":"Dan 191"},{"$f":"IF(WEEKDAY(DanKalendara)=WeekStartValue,CONCATENATE(\"Tjedan \",WEEKNUM(DanKalendara),\"/Dan \",DanKalendara-DATE(YEAR(DanKalendara),1,0)),CONCATENATE(\"Dan \",DanKalendara-DATE(YEAR(DanKalendara),1,0)))","v":"Dan 192"},{"$f":"IF(WEEKDAY(DanKalendara)=WeekStartValue,CONCATENATE(\"Tjedan \",WEEKNUM(DanKalendara),\"/Dan \",DanKalendara-DATE(YEAR(DanKalendara),1,0)),CONCATENATE(\"Dan \",DanKalendara-DATE(YEAR(DanKalendara),1,0)))","v":"Dan 193"},{"$f":"IF(WEEKDAY(DanKalendara)=WeekStartValue,CONCATENATE(\"Tjedan \",WEEKNUM(DanKalendara),\"/Dan \",DanKalendara-DATE(YEAR(DanKalendara),1,0)),CONCATENATE(\"Dan \",DanKalendara-DATE(YEAR(DanKalendara),1,0)))","v":"Dan 194"},{"$f":"IF(WEEKDAY(DanKalendara)=WeekStartValue,CONCATENATE(\"Tjedan \",WEEKNUM(DanKalendara),\"/Dan \",DanKalendara-DATE(YEAR(DanKalendara),1,0)),CONCATENATE(\"Dan \",DanKalendara-DATE(YEAR(DanKalendara),1,0)))","v":"Dan 195"}]
[]
[null,null,{"$f":"DaysAndWeeks+DATE(KalendarskaGodina,7,1)-WEEKDAY(DATE(KalendarskaGodina,7,1),(WeekStart=\"PON\")+1)+15","v":"2018-07-15"},"2018-07-16","2018-07-17","2018-07-18","2018-07-19","2018-07-20","2018-07-21"]
[null,null,{"$f":"IF(WEEKDAY(DanKalendara)=WeekStartValue,CONCATENATE(\"Tjedan \",WEEKNUM(DanKalendara),\"/Dan \",DanKalendara-DATE(YEAR(DanKalendara),1,0)),CONCATENATE(\"Dan \",DanKalendara-DATE(YEAR(DanKalendara),1,0)))","v":"Tjedan 29/Dan 196"},{"$f":"IF(WEEKDAY(DanKalendara)=WeekStartValue,CONCATENATE(\"Tjedan \",WEEKNUM(DanKalendara),\"/Dan \",DanKalendara-DATE(YEAR(DanKalendara),1,0)),CONCATENATE(\"Dan \",DanKalendara-DATE(YEAR(DanKalendara),1,0)))","v":"Dan 197"},{"$f":"IF(WEEKDAY(DanKalendara)=WeekStartValue,CONCATENATE(\"Tjedan \",WEEKNUM(DanKalendara),\"/Dan \",DanKalendara-DATE(YEAR(DanKalendara),1,0)),CONCATENATE(\"Dan \",DanKalendara-DATE(YEAR(DanKalendara),1,0)))","v":"Dan 198"},{"$f":"IF(WEEKDAY(DanKalendara)=WeekStartValue,CONCATENATE(\"Tjedan \",WEEKNUM(DanKalendara),\"/Dan \",DanKalendara-DATE(YEAR(DanKalendara),1,0)),CONCATENATE(\"Dan \",DanKalendara-DATE(YEAR(DanKalendara),1,0)))","v":"Dan 199"},{"$f":"IF(WEEKDAY(DanKalendara)=WeekStartValue,CONCATENATE(\"Tjedan \",WEEKNUM(DanKalendara),\"/Dan \",DanKalendara-DATE(YEAR(DanKalendara),1,0)),CONCATENATE(\"Dan \",DanKalendara-DATE(YEAR(DanKalendara),1,0)))","v":"Dan 200"},{"$f":"IF(WEEKDAY(DanKalendara)=WeekStartValue,CONCATENATE(\"Tjedan \",WEEKNUM(DanKalendara),\"/Dan \",DanKalendara-DATE(YEAR(DanKalendara),1,0)),CONCATENATE(\"Dan \",DanKalendara-DATE(YEAR(DanKalendara),1,0)))","v":"Dan 201"},{"$f":"IF(WEEKDAY(DanKalendara)=WeekStartValue,CONCATENATE(\"Tjedan \",WEEKNUM(DanKalendara),\"/Dan \",DanKalendara-DATE(YEAR(DanKalendara),1,0)),CONCATENATE(\"Dan \",DanKalendara-DATE(YEAR(DanKalendara),1,0)))","v":"Dan 202"}]
[]
[null,null,{"$f":"DaysAndWeeks+DATE(KalendarskaGodina,7,1)-WEEKDAY(DATE(KalendarskaGodina,7,1),(WeekStart=\"PON\")+1)+22","v":"2018-07-22"},"2018-07-23","2018-07-24","2018-07-25","2018-07-26","2018-07-27","2018-07-28"]
[null,null,{"$f":"IF(WEEKDAY(DanKalendara)=WeekStartValue,CONCATENATE(\"Tjedan \",WEEKNUM(DanKalendara),\"/Dan \",DanKalendara-DATE(YEAR(DanKalendara),1,0)),CONCATENATE(\"Dan \",DanKalendara-DATE(YEAR(DanKalendara),1,0)))","v":"Tjedan 30/Dan 203"},{"$f":"IF(WEEKDAY(DanKalendara)=WeekStartValue,CONCATENATE(\"Tjedan \",WEEKNUM(DanKalendara),\"/Dan \",DanKalendara-DATE(YEAR(DanKalendara),1,0)),CONCATENATE(\"Dan \",DanKalendara-DATE(YEAR(DanKalendara),1,0)))","v":"Dan 204"},{"$f":"IF(WEEKDAY(DanKalendara)=WeekStartValue,CONCATENATE(\"Tjedan \",WEEKNUM(DanKalendara),\"/Dan \",DanKalendara-DATE(YEAR(DanKalendara),1,0)),CONCATENATE(\"Dan \",DanKalendara-DATE(YEAR(DanKalendara),1,0)))","v":"Dan 205"},{"$f":"IF(WEEKDAY(DanKalendara)=WeekStartValue,CONCATENATE(\"Tjedan \",WEEKNUM(DanKalendara),\"/Dan \",DanKalendara-DATE(YEAR(DanKalendara),1,0)),CONCATENATE(\"Dan \",DanKalendara-DATE(YEAR(DanKalendara),1,0)))","v":"Dan 206"},{"$f":"IF(WEEKDAY(DanKalendara)=WeekStartValue,CONCATENATE(\"Tjedan \",WEEKNUM(DanKalendara),\"/Dan \",DanKalendara-DATE(YEAR(DanKalendara),1,0)),CONCATENATE(\"Dan \",DanKalendara-DATE(YEAR(DanKalendara),1,0)))","v":"Dan 207"},{"$f":"IF(WEEKDAY(DanKalendara)=WeekStartValue,CONCATENATE(\"Tjedan \",WEEKNUM(DanKalendara),\"/Dan \",DanKalendara-DATE(YEAR(DanKalendara),1,0)),CONCATENATE(\"Dan \",DanKalendara-DATE(YEAR(DanKalendara),1,0)))","v":"Dan 208"},{"$f":"IF(WEEKDAY(DanKalendara)=WeekStartValue,CONCATENATE(\"Tjedan \",WEEKNUM(DanKalendara),\"/Dan \",DanKalendara-DATE(YEAR(DanKalendara),1,0)),CONCATENATE(\"Dan \",DanKalendara-DATE(YEAR(DanKalendara),1,0)))","v":"Dan 209"}]
[]
[null,null,{"$f":"DaysAndWeeks+DATE(KalendarskaGodina,7,1)-WEEKDAY(DATE(KalendarskaGodina,7,1),(WeekStart=\"PON\")+1)+29","v":"2018-07-29"},"2018-07-30","2018-07-31","2018-08-01","2018-08-02","2018-08-03","2018-08-04"]
[null,null,{"$f":"IF(WEEKDAY(DanKalendara)=WeekStartValue,CONCATENATE(\"Tjedan \",WEEKNUM(DanKalendara),\"/Dan \",DanKalendara-DATE(YEAR(DanKalendara),1,0)),CONCATENATE(\"Dan \",DanKalendara-DATE(YEAR(DanKalendara),1,0)))","v":"Tjedan 31/Dan 210"},{"$f":"IF(WEEKDAY(DanKalendara)=WeekStartValue,CONCATENATE(\"Tjedan \",WEEKNUM(DanKalendara),\"/Dan \",DanKalendara-DATE(YEAR(DanKalendara),1,0)),CONCATENATE(\"Dan \",DanKalendara-DATE(YEAR(DanKalendara),1,0)))","v":"Dan 211"},{"$f":"IF(WEEKDAY(DanKalendara)=WeekStartValue,CONCATENATE(\"Tjedan \",WEEKNUM(DanKalendara),\"/Dan \",DanKalendara-DATE(YEAR(DanKalendara),1,0)),CONCATENATE(\"Dan \",DanKalendara-DATE(YEAR(DanKalendara),1,0)))","v":"Dan 212"},{"$f":"IF(WEEKDAY(DanKalendara)=WeekStartValue,CONCATENATE(\"Tjedan \",WEEKNUM(DanKalendara),\"/Dan \",DanKalendara-DATE(YEAR(DanKalendara),1,0)),CONCATENATE(\"Dan \",DanKalendara-DATE(YEAR(DanKalendara),1,0)))","v":"Dan 213"},{"$f":"IF(WEEKDAY(DanKalendara)=WeekStartValue,CONCATENATE(\"Tjedan \",WEEKNUM(DanKalendara),\"/Dan \",DanKalendara-DATE(YEAR(DanKalendara),1,0)),CONCATENATE(\"Dan \",DanKalendara-DATE(YEAR(DanKalendara),1,0)))","v":"Dan 214"},{"$f":"IF(WEEKDAY(DanKalendara)=WeekStartValue,CONCATENATE(\"Tjedan \",WEEKNUM(DanKalendara),\"/Dan \",DanKalendara-DATE(YEAR(DanKalendara),1,0)),CONCATENATE(\"Dan \",DanKalendara-DATE(YEAR(DanKalendara),1,0)))","v":"Dan 215"},{"$f":"IF(WEEKDAY(DanKalendara)=WeekStartValue,CONCATENATE(\"Tjedan \",WEEKNUM(DanKalendara),\"/Dan \",DanKalendara-DATE(YEAR(DanKalendara),1,0)),CONCATENATE(\"Dan \",DanKalendara-DATE(YEAR(DanKalendara),1,0)))","v":"Dan 216"}]
[{"$nulls":4},"BILJEŠKE"]
[]
[null,null,{"$f":"DaysAndWeeks+DATE(KalendarskaGodina,7,1)-WEEKDAY(DATE(KalendarskaGodina,7,1),(WeekStart=\"PON\")+1)+36","v":"2018-08-05"},"2018-08-06"]
[null,null,{"$f":"IF(WEEKDAY(DanKalendara)=WeekStartValue,CONCATENATE(\"Tjedan \",WEEKNUM(DanKalendara),\"/Dan \",DanKalendara-DATE(YEAR(DanKalendara),1,0)),CONCATENATE(\"Dan \",DanKalendara-DATE(YEAR(DanKalendara),1,0)))","v":"Tjedan 32/Dan 217"},{"$f":"IF(WEEKDAY(DanKalendara)=WeekStartValue,CONCATENATE(\"Tjedan \",WEEKNUM(DanKalendara),\"/Dan \",DanKalendara-DATE(YEAR(DanKalendara),1,0)),CONCATENATE(\"Dan \",DanKalendara-DATE(YEAR(DanKalendara),1,0)))","v":"Dan 218"}]

{"sheet":"KOL","index":7,"n_rows":20,"n_cols":9,"rows_kept":20,"merged":[[16,2,17,2],[17,4,19,8]]}
[null,"KOL",{"$f":"UPPER(TEXT(WeekStart,\"ddd\"))","v":"NED"},{"$f":"UPPER(TEXT(D3,\"aaa\"))","v":"PON"},"UTO","SRI","ČET","PET","SUB"]
[null,{"$f":"KalendarskaGodina","v":2018}]
[null,null,{"$f":"DaysAndWeeks+DATE(KalendarskaGodina,8,1)-WEEKDAY(DATE(KalendarskaGodina,8,1),(WeekStart=\"PON\")+1)+1","v":"2018-07-29"},"2018-07-30","2018-07-31","2018-08-01","2018-08-02","2018-08-03","2018-08-04"]
[null,null,{"$f":"IF(DAY(DanKalendara)=1,CONCATENATE(\"Tjedan \",WEEKNUM(DanKalendara),\"/Dan \",DanKalendara-DATE(YEAR(DanKalendara),1,0)),CONCATENATE(\"Dan \",DanKalendara-DATE(YEAR(DanKalendara),1,0)))","v":"Dan 210"},{"$f":"IF(DAY(DanKalendara)=1,CONCATENATE(\"Tjedan \",WEEKNUM(DanKalendara),\"/Dan \",DanKalendara-DATE(YEAR(DanKalendara),1,0)),CONCATENATE(\"Dan \",DanKalendara-DATE(YEAR(DanKalendara),1,0)))","v":"Dan 211"},{"$f":"IF(DAY(DanKalendara)=1,CONCATENATE(\"Tjedan \",WEEKNUM(DanKalendara),\"/Dan \",DanKalendara-DATE(YEAR(DanKalendara),1,0)),CONCATENATE(\"Dan \",DanKalendara-DATE(YEAR(DanKalendara),1,0)))","v":"Dan 212"},{"$f":"IF(DAY(DanKalendara)=1,CONCATENATE(\"Tjedan \",WEEKNUM(DanKalendara),\"/Dan \",DanKalendara-DATE(YEAR(DanKalendara),1,0)),CONCATENATE(\"Dan \",DanKalendara-DATE(YEAR(DanKalendara),1,0)))","v":"Tjedan 31/Dan 213"},{"$f":"IF(DAY(DanKalendara)=1,CONCATENATE(\"Tjedan \",WEEKNUM(DanKalendara),\"/Dan \",DanKalendara-DATE(YEAR(DanKalendara),1,0)),CONCATENATE(\"Dan \",DanKalendara-DATE(YEAR(DanKalendara),1,0)))","v":"Dan 214"},{"$f":"IF(DAY(DanKalendara)=1,CONCATENATE(\"Tjedan \",WEEKNUM(DanKalendara),\"/Dan \",DanKalendara-DATE(YEAR(DanKalendara),1,0)),CONCATENATE(\"Dan \",DanKalendara-DATE(YEAR(DanKalendara),1,0)))","v":"Dan 215"},{"$f":"IF(DAY(DanKalendara)=1,CONCATENATE(\"Tjedan \",WEEKNUM(DanKalendara),\"/Dan \",DanKalendara-DATE(YEAR(DanKalendara),1,0)),CONCATENATE(\"Dan \",DanKalendara-DATE(YEAR(DanKalendara),1,0)))","v":"Dan 216"}]
[]
[null,null,{"$f":"DaysAndWeeks+DATE(KalendarskaGodina,8,1)-WEEKDAY(DATE(KalendarskaGodina,8,1),(WeekStart=\"PON\")+1)+8","v":"2018-08-05"},"2018-08-06","2018-08-07","2018-08-08","2018-08-09","2018-08-10","2018-08-11"]
[null,null,{"$f":"IF(WEEKDAY(DanKalendara)=WeekStartValue,CONCATENATE(\"Tjedan \",WEEKNUM(DanKalendara),\"/Dan \",DanKalendara-DATE(YEAR(DanKalendara),1,0)),CONCATENATE(\"Dan \",DanKalendara-DATE(YEAR(DanKalendara),1,0)))","v":"Tjedan 32/Dan 217"},{"$f":"IF(WEEKDAY(DanKalendara)=WeekStartValue,CONCATENATE(\"Tjedan \",WEEKNUM(DanKalendara),\"/Dan \",DanKalendara-DATE(YEAR(DanKalendara),1,0)),CONCATENATE(\"Dan \",DanKalendara-DATE(YEAR(DanKalendara),1,0)))","v":"Dan 218"},{"$f":"IF(WEEKDAY(DanKalendara)=WeekStartValue,CONCATENATE(\"Tjedan \",WEEKNUM(DanKalendara),\"/Dan \",DanKalendara-DATE(YEAR(DanKalendara),1,0)),CONCATENATE(\"Dan \",DanKalendara-DATE(YEAR(DanKalendara),1,0)))","v":"Dan 219"},{"$f":"IF(WEEKDAY(DanKalendara)=WeekStartValue,CONCATENATE(\"Tjedan \",WEEKNUM(DanKalendara),\"/Dan \",DanKalendara-DATE(YEAR(DanKalendara),1,0)),CONCATENATE(\"Dan \",DanKalendara-DATE(YEAR(DanKalendara),1,0)))","v":"Dan 220"},{"$f":"IF(WEEKDAY(DanKalendara)=WeekStartValue,CONCATENATE(\"Tjedan \",WEEKNUM(DanKalendara),\"/Dan \",DanKalendara-DATE(YEAR(DanKalendara),1,0)),CONCATENATE(\"Dan \",DanKalendara-DATE(YEAR(DanKalendara),1,0)))","v":"Dan 221"},{"$f":"IF(WEEKDAY(DanKalendara)=WeekStartValue,CONCATENATE(\"Tjedan \",WEEKNUM(DanKalendara),\"/Dan \",DanKalendara-DATE(YEAR(DanKalendara),1,0)),CONCATENATE(\"Dan \",DanKalendara-DATE(YEAR(DanKalendara),1,0)))","v":"Dan 222"},{"$f":"IF(WEEKDAY(DanKalendara)=WeekStartValue,CONCATENATE(\"Tjedan \",WEEKNUM(DanKalendara),\"/Dan \",DanKalendara-DATE(YEAR(DanKalendara),1,0)),CONCATENATE(\"Dan \",DanKalendara-DATE(YEAR(DanKalendara),1,0)))","v":"Dan 223"}]
[]
[null,null,{"$f":"DaysAndWeeks+DATE(KalendarskaGodina,8,1)-WEEKDAY(DATE(KalendarskaGodina,8,1),(WeekStart=\"PON\")+1)+15","v":"2018-08-12"},"2018-08-13","2018-08-14","2018-08-15","2018-08-16","2018-08-17","2018-08-18"]
[null,null,{"$f":"IF(WEEKDAY(DanKalendara)=WeekStartValue,CONCATENATE(\"Tjedan \",WEEKNUM(DanKalendara),\"/Dan \",DanKalendara-DATE(YEAR(DanKalendara),1,0)),CONCATENATE(\"Dan \",DanKalendara-DATE(YEAR(DanKalendara),1,0)))","v":"Tjedan 33/Dan 224"},{"$f":"IF(WEEKDAY(DanKalendara)=WeekStartValue,CONCATENATE(\"Tjedan \",WEEKNUM(DanKalendara),\"/Dan \",DanKalendara-DATE(YEAR(DanKalendara),1,0)),CONCATENATE(\"Dan \",DanKalendara-DATE(YEAR(DanKalendara),1,0)))","v":"Dan 225"},{"$f":"IF(WEEKDAY(DanKalendara)=WeekStartValue,CONCATENATE(\"Tjedan \",WEEKNUM(DanKalendara),\"/Dan \",DanKalendara-DATE(YEAR(DanKalendara),1,0)),CONCATENATE(\"Dan \",DanKalendara-DATE(YEAR(DanKalendara),1,0)))","v":"Dan 226"},{"$f":"IF(WEEKDAY(DanKalendara)=WeekStartValue,CONCATENATE(\"Tjedan \",WEEKNUM(DanKalendara),\"/Dan \",DanKalendara-DATE(YEAR(DanKalendara),1,0)),CONCATENATE(\"Dan \",DanKalendara-DATE(YEAR(DanKalendara),1,0)))","v":"Dan 227"},{"$f":"IF(WEEKDAY(DanKalendara)=WeekStartValue,CONCATENATE(\"Tjedan \",WEEKNUM(DanKalendara),\"/Dan \",DanKalendara-DATE(YEAR(DanKalendara),1,0)),CONCATENATE(\"Dan \",DanKalendara-DATE(YEAR(DanKalendara),1,0)))","v":"Dan 228"},{"$f":"IF(WEEKDAY(DanKalendara)=WeekStartValue,CONCATENATE(\"Tjedan \",WEEKNUM(DanKalendara),\"/Dan \",DanKalendara-DATE(YEAR(DanKalendara),1,0)),CONCATENATE(\"Dan \",DanKalendara-DATE(YEAR(DanKalendara),1,0)))","v":"Dan 229"},{"$f":"IF(WEEKDAY(DanKalendara)=WeekStartValue,CONCATENATE(\"Tjedan \",WEEKNUM(DanKalendara),\"/Dan \",DanKalendara-DATE(YEAR(DanKalendara),1,0)),CONCATENATE(\"Dan \",DanKalendara-DATE(YEAR(DanKalendara),1,0)))","v":"Dan 230"}]
[]
[null,null,{"$f":"DaysAndWeeks+DATE(KalendarskaGodina,8,1)-WEEKDAY(DATE(KalendarskaGodina,8,1),(WeekStart=\"PON\")+1)+22","v":"2018-08-19"},"2018-08-20","2018-08-21","2018-08-22","2018-08-23","2018-08-24","2018-08-25"]
[null,null,{"$f":"IF(WEEKDAY(DanKalendara)=WeekStartValue,CONCATENATE(\"Tjedan \",WEEKNUM(DanKalendara),\"/Dan \",DanKalendara-DATE(YEAR(DanKalendara),1,0)),CONCATENATE(\"Dan \",DanKalendara-DATE(YEAR(DanKalendara),1,0)))","v":"Tjedan 34/Dan 231"},{"$f":"IF(WEEKDAY(DanKalendara)=WeekStartValue,CONCATENATE(\"Tjedan \",WEEKNUM(DanKalendara),\"/Dan \",DanKalendara-DATE(YEAR(DanKalendara),1,0)),CONCATENATE(\"Dan \",DanKalendara-DATE(YEAR(DanKalendara),1,0)))","v":"Dan 232"},{"$f":"IF(WEEKDAY(DanKalendara)=WeekStartValue,CONCATENATE(\"Tjedan \",WEEKNUM(DanKalendara),\"/Dan \",DanKalendara-DATE(YEAR(DanKalendara),1,0)),CONCATENATE(\"Dan \",DanKalendara-DATE(YEAR(DanKalendara),1,0)))","v":"Dan 233"},{"$f":"IF(WEEKDAY(DanKalendara)=WeekStartValue,CONCATENATE(\"Tjedan \",WEEKNUM(DanKalendara),\"/Dan \",DanKalendara-DATE(YEAR(DanKalendara),1,0)),CONCATENATE(\"Dan \",DanKalendara-DATE(YEAR(DanKalendara),1,0)))","v":"Dan 234"},{"$f":"IF(WEEKDAY(DanKalendara)=WeekStartValue,CONCATENATE(\"Tjedan \",WEEKNUM(DanKalendara),\"/Dan \",DanKalendara-DATE(YEAR(DanKalendara),1,0)),CONCATENATE(\"Dan \",DanKalendara-DATE(YEAR(DanKalendara),1,0)))","v":"Dan 235"},{"$f":"IF(WEEKDAY(DanKalendara)=WeekStartValue,CONCATENATE(\"Tjedan \",WEEKNUM(DanKalendara),\"/Dan \",DanKalendara-DATE(YEAR(DanKalendara),1,0)),CONCATENATE(\"Dan \",DanKalendara-DATE(YEAR(DanKalendara),1,0)))","v":"Dan 236"},{"$f":"IF(WEEKDAY(DanKalendara)=WeekStartValue,CONCATENATE(\"Tjedan \",WEEKNUM(DanKalendara),\"/Dan \",DanKalendara-DATE(YEAR(DanKalendara),1,0)),CONCATENATE(\"Dan \",DanKalendara-DATE(YEAR(DanKalendara),1,0)))","v":"Dan 237"}]
[]
[null,null,{"$f":"DaysAndWeeks+DATE(KalendarskaGodina,8,1)-WEEKDAY(DATE(KalendarskaGodina,8,1),(WeekStart=\"PON\")+1)+29","v":"2018-08-26"},"2018-08-27","2018-08-28","2018-08-29","2018-08-30","2018-08-31","2018-09-01"]
[null,null,{"$f":"IF(WEEKDAY(DanKalendara)=WeekStartValue,CONCATENATE(\"Tjedan \",WEEKNUM(DanKalendara),\"/Dan \",DanKalendara-DATE(YEAR(DanKalendara),1,0)),CONCATENATE(\"Dan \",DanKalendara-DATE(YEAR(DanKalendara),1,0)))","v":"Tjedan 35/Dan 238"},{"$f":"IF(WEEKDAY(DanKalendara)=WeekStartValue,CONCATENATE(\"Tjedan \",WEEKNUM(DanKalendara),\"/Dan \",DanKalendara-DATE(YEAR(DanKalendara),1,0)),CONCATENATE(\"Dan \",DanKalendara-DATE(YEAR(DanKalendara),1,0)))","v":"Dan 239"},{"$f":"IF(WEEKDAY(DanKalendara)=WeekStartValue,CONCATENATE(\"Tjedan \",WEEKNUM(DanKalendara),\"/Dan \",DanKalendara-DATE(YEAR(DanKalendara),1,0)),CONCATENATE(\"Dan \",DanKalendara-DATE(YEAR(DanKalendara),1,0)))","v":"Dan 240"},{"$f":"IF(WEEKDAY(DanKalendara)=WeekStartValue,CONCATENATE(\"Tjedan \",WEEKNUM(DanKalendara),\"/Dan \",DanKalendara-DATE(YEAR(DanKalendara),1,0)),CONCATENATE(\"Dan \",DanKalendara-DATE(YEAR(DanKalendara),1,0)))","v":"Dan 241"},{"$f":"IF(WEEKDAY(DanKalendara)=WeekStartValue,CONCATENATE(\"Tjedan \",WEEKNUM(DanKalendara),\"/Dan \",DanKalendara-DATE(YEAR(DanKalendara),1,0)),CONCATENATE(\"Dan \",DanKalendara-DATE(YEAR(DanKalendara),1,0)))","v":"Dan 242"},{"$f":"IF(WEEKDAY(DanKalendara)=WeekStartValue,CONCATENATE(\"Tjedan \",WEEKNUM(DanKalendara),\"/Dan \",DanKalendara-DATE(YEAR(DanKalendara),1,0)),CONCATENATE(\"Dan \",DanKalendara-DATE(YEAR(DanKalendara),1,0)))","v":"Dan 243"},{"$f":"IF(WEEKDAY(DanKalendara)=WeekStartValue,CONCATENATE(\"Tjedan \",WEEKNUM(DanKalendara),\"/Dan \",DanKalendara-DATE(YEAR(DanKalendara),1,0)),CONCATENATE(\"Dan \",DanKalendara-DATE(YEAR(DanKalendara),1,0)))","v":"Dan 244"}]
[{"$nulls":4},"BILJEŠKE"]
[]
[null,null,{"$f":"DaysAndWeeks+DATE(KalendarskaGodina,8,1)-WEEKDAY(DATE(KalendarskaGodina,8,1),(WeekStart=\"PON\")+1)+36","v":"2018-09-02"},"2018-09-03"]
[null,null,{"$f":"IF(WEEKDAY(DanKalendara)=WeekStartValue,CONCATENATE(\"Tjedan \",WEEKNUM(DanKalendara),\"/Dan \",DanKalendara-DATE(YEAR(DanKalendara),1,0)),CONCATENATE(\"Dan \",DanKalendara-DATE(YEAR(DanKalendara),1,0)))","v":"Tjedan 36/Dan 245"},{"$f":"IF(WEEKDAY(DanKalendara)=WeekStartValue,CONCATENATE(\"Tjedan \",WEEKNUM(DanKalendara),\"/Dan \",DanKalendara-DATE(YEAR(DanKalendara),1,0)),CONCATENATE(\"Dan \",DanKalendara-DATE(YEAR(DanKalendara),1,0)))","v":"Dan 246"}]

{"sheet":"RUJ","index":8,"n_rows":20,"n_cols":9,"rows_kept":20,"merged":[[16,2,17,2],[17,4,19,8]]}
[null,"RUJ",{"$f":"UPPER(TEXT(WeekStart,\"ddd\"))","v":"NED"},{"$f":"UPPER(TEXT(D3,\"aaa\"))","v":"PON"},"UTO","SRI","ČET","PET","SUB"]
[null,{"$f":"KalendarskaGodina","v":2018}]
[null,null,{"$f":"DaysAndWeeks+DATE(KalendarskaGodina,9,1)-WEEKDAY(DATE(KalendarskaGodina,9,1),(WeekStart=\"PON\")+1)+1","v":"2018-08-26"},"2018-08-27","2018-08-28","2018-08-29","2018-08-30","2018-08-31","2018-09-01"]
[null,null,{"$f":"IF(DAY(DanKalendara)=1,CONCATENATE(\"Tjedan \",WEEKNUM(DanKalendara),\"/Dan \",DanKalendara-DATE(YEAR(DanKalendara),1,0)),CONCATENATE(\"Dan \",DanKalendara-DATE(YEAR(DanKalendara),1,0)))","v":"Dan 238"},{"$f":"IF(DAY(DanKalendara)=1,CONCATENATE(\"Tjedan \",WEEKNUM(DanKalendara),\"/Dan \",DanKalendara-DATE(YEAR(DanKalendara),1,0)),CONCATENATE(\"Dan \",DanKalendara-DATE(YEAR(DanKalendara),1,0)))","v":"Dan 239"},{"$f":"IF(DAY(DanKalendara)=1,CONCATENATE(\"Tjedan \",WEEKNUM(DanKalendara),\"/Dan \",DanKalendara-DATE(YEAR(DanKalendara),1,0)),CONCATENATE(\"Dan \",DanKalendara-DATE(YEAR(DanKalendara),1,0)))","v":"Dan 240"},{"$f":"IF(DAY(DanKalendara)=1,CONCATENATE(\"Tjedan \",WEEKNUM(DanKalendara),\"/Dan \",DanKalendara-DATE(YEAR(DanKalendara),1,0)),CONCATENATE(\"Dan \",DanKalendara-DATE(YEAR(DanKalendara),1,0)))","v":"Dan 241"},{"$f":"IF(DAY(DanKalendara)=1,CONCATENATE(\"Tjedan \",WEEKNUM(DanKalendara),\"/Dan \",DanKalendara-DATE(YEAR(DanKalendara),1,0)),CONCATENATE(\"Dan \",DanKalendara-DATE(YEAR(DanKalendara),1,0)))","v":"Dan 242"},{"$f":"IF(DAY(DanKalendara)=1,CONCATENATE(\"Tjedan \",WEEKNUM(DanKalendara),\"/Dan \",DanKalendara-DATE(YEAR(DanKalendara),1,0)),CONCATENATE(\"Dan \",DanKalendara-DATE(YEAR(DanKalendara),1,0)))","v":"Dan 243"},{"$f":"IF(DAY(DanKalendara)=1,CONCATENATE(\"Tjedan \",WEEKNUM(DanKalendara),\"/Dan \",DanKalendara-DATE(YEAR(DanKalendara),1,0)),CONCATENATE(\"Dan \",DanKalendara-DATE(YEAR(DanKalendara),1,0)))","v":"Tjedan 35/Dan 244"}]
[]
[null,null,{"$f":"DaysAndWeeks+DATE(KalendarskaGodina,9,1)-WEEKDAY(DATE(KalendarskaGodina,9,1),(WeekStart=\"PON\")+1)+8","v":"2018-09-02"},"2018-09-03","2018-09-04","2018-09-05","2018-09-06","2018-09-07","2018-09-08"]
[null,null,{"$f":"IF(WEEKDAY(DanKalendara)=WeekStartValue,CONCATENATE(\"Tjedan \",WEEKNUM(DanKalendara),\"/Dan \",DanKalendara-DATE(YEAR(DanKalendara),1,0)),CONCATENATE(\"Dan \",DanKalendara-DATE(YEAR(DanKalendara),1,0)))","v":"Tjedan 36/Dan 245"},{"$f":"IF(WEEKDAY(DanKalendara)=WeekStartValue,CONCATENATE(\"Tjedan \",WEEKNUM(DanKalendara),\"/Dan \",DanKalendara-DATE(YEAR(DanKalendara),1,0)),CONCATENATE(\"Dan \",DanKalendara-DATE(YEAR(DanKalendara),1,0)))","v":"Dan 246"},{"$f":"IF(WEEKDAY(DanKalendara)=WeekStartValue,CONCATENATE(\"Tjedan \",WEEKNUM(DanKalendara),\"/Dan \",DanKalendara-DATE(YEAR(DanKalendara),1,0)),CONCATENATE(\"Dan \",DanKalendara-DATE(YEAR(DanKalendara),1,0)))","v":"Dan 247"},{"$f":"IF(WEEKDAY(DanKalendara)=WeekStartValue,CONCATENATE(\"Tjedan \",WEEKNUM(DanKalendara),\"/Dan \",DanKalendara-DATE(YEAR(DanKalendara),1,0)),CONCATENATE(\"Dan \",DanKalendara-DATE(YEAR(DanKalendara),1,0)))","v":"Dan 248"},{"$f":"IF(WEEKDAY(DanKalendara)=WeekStartValue,CONCATENATE(\"Tjedan \",WEEKNUM(DanKalendara),\"/Dan \",DanKalendara-DATE(YEAR(DanKalendara),1,0)),CONCATENATE(\"Dan \",DanKalendara-DATE(YEAR(DanKalendara),1,0)))","v":"Dan 249"},{"$f":"IF(WEEKDAY(DanKalendara)=WeekStartValue,CONCATENATE(\"Tjedan \",WEEKNUM(DanKalendara),\"/Dan \",DanKalendara-DATE(YEAR(DanKalendara),1,0)),CONCATENATE(\"Dan \",DanKalendara-DATE(YEAR(DanKalendara),1,0)))","v":"Dan 250"},{"$f":"IF(WEEKDAY(DanKalendara)=WeekStartValue,CONCATENATE(\"Tjedan \",WEEKNUM(DanKalendara),\"/Dan \",DanKalendara-DATE(YEAR(DanKalendara),1,0)),CONCATENATE(\"Dan \",DanKalendara-DATE(YEAR(DanKalendara),1,0)))","v":"Dan 251"}]
[]
[null,null,{"$f":"DaysAndWeeks+DATE(KalendarskaGodina,9,1)-WEEKDAY(DATE(KalendarskaGodina,9,1),(WeekStart=\"PON\")+1)+15","v":"2018-09-09"},"2018-09-10","2018-09-11","2018-09-12","2018-09-13","2018-09-14","2018-09-15"]
[null,null,{"$f":"IF(WEEKDAY(DanKalendara)=WeekStartValue,CONCATENATE(\"Tjedan \",WEEKNUM(DanKalendara),\"/Dan \",DanKalendara-DATE(YEAR(DanKalendara),1,0)),CONCATENATE(\"Dan \",DanKalendara-DATE(YEAR(DanKalendara),1,0)))","v":"Tjedan 37/Dan 252"},{"$f":"IF(WEEKDAY(DanKalendara)=WeekStartValue,CONCATENATE(\"Tjedan \",WEEKNUM(DanKalendara),\"/Dan \",DanKalendara-DATE(YEAR(DanKalendara),1,0)),CONCATENATE(\"Dan \",DanKalendara-DATE(YEAR(DanKalendara),1,0)))","v":"Dan 253"},{"$f":"IF(WEEKDAY(DanKalendara)=WeekStartValue,CONCATENATE(\"Tjedan \",WEEKNUM(DanKalendara),\"/Dan \",DanKalendara-DATE(YEAR(DanKalendara),1,0)),CONCATENATE(\"Dan \",DanKalendara-DATE(YEAR(DanKalendara),1,0)))","v":"Dan 254"},{"$f":"IF(WEEKDAY(DanKalendara)=WeekStartValue,CONCATENATE(\"Tjedan \",WEEKNUM(DanKalendara),\"/Dan \",DanKalendara-DATE(YEAR(DanKalendara),1,0)),CONCATENATE(\"Dan \",DanKalendara-DATE(YEAR(DanKalendara),1,0)))","v":"Dan 255"},{"$f":"IF(WEEKDAY(DanKalendara)=WeekStartValue,CONCATENATE(\"Tjedan \",WEEKNUM(DanKalendara),\"/Dan \",DanKalendara-DATE(YEAR(DanKalendara),1,0)),CONCATENATE(\"Dan \",DanKalendara-DATE(YEAR(DanKalendara),1,0)))","v":"Dan 256"},{"$f":"IF(WEEKDAY(DanKalendara)=WeekStartValue,CONCATENATE(\"Tjedan \",WEEKNUM(DanKalendara),\"/Dan \",DanKalendara-DATE(YEAR(DanKalendara),1,0)),CONCATENATE(\"Dan \",DanKalendara-DATE(YEAR(DanKalendara),1,0)))","v":"Dan 257"},{"$f":"IF(WEEKDAY(DanKalendara)=WeekStartValue,CONCATENATE(\"Tjedan \",WEEKNUM(DanKalendara),\"/Dan \",DanKalendara-DATE(YEAR(DanKalendara),1,0)),CONCATENATE(\"Dan \",DanKalendara-DATE(YEAR(DanKalendara),1,0)))","v":"Dan 258"}]
[]
[null,null,{"$f":"DaysAndWeeks+DATE(KalendarskaGodina,9,1)-WEEKDAY(DATE(KalendarskaGodina,9,1),(WeekStart=\"PON\")+1)+22","v":"2018-09-16"},"2018-09-17","2018-09-18","2018-09-19","2018-09-20","2018-09-21","2018-09-22"]
[null,null,{"$f":"IF(WEEKDAY(DanKalendara)=WeekStartValue,CONCATENATE(\"Tjedan \",WEEKNUM(DanKalendara),\"/Dan \",DanKalendara-DATE(YEAR(DanKalendara),1,0)),CONCATENATE(\"Dan \",DanKalendara-DATE(YEAR(DanKalendara),1,0)))","v":"Tjedan 38/Dan 259"},{"$f":"IF(WEEKDAY(DanKalendara)=WeekStartValue,CONCATENATE(\"Tjedan \",WEEKNUM(DanKalendara),\"/Dan \",DanKalendara-DATE(YEAR(DanKalendara),1,0)),CONCATENATE(\"Dan \",DanKalendara-DATE(YEAR(DanKalendara),1,0)))","v":"Dan 260"},{"$f":"IF(WEEKDAY(DanKalendara)=WeekStartValue,CONCATENATE(\"Tjedan \",WEEKNUM(DanKalendara),\"/Dan \",DanKalendara-DATE(YEAR(DanKalendara),1,0)),CONCATENATE(\"Dan \",DanKalendara-DATE(YEAR(DanKalendara),1,0)))","v":"Dan 261"},{"$f":"IF(WEEKDAY(DanKalendara)=WeekStartValue,CONCATENATE(\"Tjedan \",WEEKNUM(DanKalendara),\"/Dan \",DanKalendara-DATE(YEAR(DanKalendara),1,0)),CONCATENATE(\"Dan \",DanKalendara-DATE(YEAR(DanKalendara),1,0)))","v":"Dan 262"},{"$f":"IF(WEEKDAY(DanKalendara)=WeekStartValue,CONCATENATE(\"Tjedan \",WEEKNUM(DanKalendara),\"/Dan \",DanKalendara-DATE(YEAR(DanKalendara),1,0)),CONCATENATE(\"Dan \",DanKalendara-DATE(YEAR(DanKalendara),1,0)))","v":"Dan 263"},{"$f":"IF(WEEKDAY(DanKalendara)=WeekStartValue,CONCATENATE(\"Tjedan \",WEEKNUM(DanKalendara),\"/Dan \",DanKalendara-DATE(YEAR(DanKalendara),1,0)),CONCATENATE(\"Dan \",DanKalendara-DATE(YEAR(DanKalendara),1,0)))","v":"Dan 264"},{"$f":"IF(WEEKDAY(DanKalendara)=WeekStartValue,CONCATENATE(\"Tjedan \",WEEKNUM(DanKalendara),\"/Dan \",DanKalendara-DATE(YEAR(DanKalendara),1,0)),CONCATENATE(\"Dan \",DanKalendara-DATE(YEAR(DanKalendara),1,0)))","v":"Dan 265"}]
[]
[null,null,{"$f":"DaysAndWeeks+DATE(KalendarskaGodina,9,1)-WEEKDAY(DATE(KalendarskaGodina,9,1),(WeekStart=\"PON\")+1)+29","v":"2018-09-23"},"2018-09-24","2018-09-25","2018-09-26","2018-09-27","2018-09-28","2018-09-29"]
[null,null,{"$f":"IF(WEEKDAY(DanKalendara)=WeekStartValue,CONCATENATE(\"Tjedan \",WEEKNUM(DanKalendara),\"/Dan \",DanKalendara-DATE(YEAR(DanKalendara),1,0)),CONCATENATE(\"Dan \",DanKalendara-DATE(YEAR(DanKalendara),1,0)))","v":"Tjedan 39/Dan 266"},{"$f":"IF(WEEKDAY(DanKalendara)=WeekStartValue,CONCATENATE(\"Tjedan \",WEEKNUM(DanKalendara),\"/Dan \",DanKalendara-DATE(YEAR(DanKalendara),1,0)),CONCATENATE(\"Dan \",DanKalendara-DATE(YEAR(DanKalendara),1,0)))","v":"Dan 267"},{"$f":"IF(WEEKDAY(DanKalendara)=WeekStartValue,CONCATENATE(\"Tjedan \",WEEKNUM(DanKalendara),\"/Dan \",DanKalendara-DATE(YEAR(DanKalendara),1,0)),CONCATENATE(\"Dan \",DanKalendara-DATE(YEAR(DanKalendara),1,0)))","v":"Dan 268"},{"$f":"IF(WEEKDAY(DanKalendara)=WeekStartValue,CONCATENATE(\"Tjedan \",WEEKNUM(DanKalendara),\"/Dan \",DanKalendara-DATE(YEAR(DanKalendara),1,0)),CONCATENATE(\"Dan \",DanKalendara-DATE(YEAR(DanKalendara),1,0)))","v":"Dan 269"},{"$f":"IF(WEEKDAY(DanKalendara)=WeekStartValue,CONCATENATE(\"Tjedan \",WEEKNUM(DanKalendara),\"/Dan \",DanKalendara-DATE(YEAR(DanKalendara),1,0)),CONCATENATE(\"Dan \",DanKalendara-DATE(YEAR(DanKalendara),1,0)))","v":"Dan 270"},{"$f":"IF(WEEKDAY(DanKalendara)=WeekStartValue,CONCATENATE(\"Tjedan \",WEEKNUM(DanKalendara),\"/Dan \",DanKalendara-DATE(YEAR(DanKalendara),1,0)),CONCATENATE(\"Dan \",DanKalendara-DATE(YEAR(DanKalendara),1,0)))","v":"Dan 271"},{"$f":"IF(WEEKDAY(DanKalendara)=WeekStartValue,CONCATENATE(\"Tjedan \",WEEKNUM(DanKalendara),\"/Dan \",DanKalendara-DATE(YEAR(DanKalendara),1,0)),CONCATENATE(\"Dan \",DanKalendara-DATE(YEAR(DanKalendara),1,0)))","v":"Dan 272"}]
[{"$nulls":4},"BILJEŠKE"]
[]
[null,null,{"$f":"DaysAndWeeks+DATE(KalendarskaGodina,9,1)-WEEKDAY(DATE(KalendarskaGodina,9,1),(WeekStart=\"PON\")+1)+36","v":"2018-09-30"},"2018-10-01"]
[null,null,{"$f":"IF(WEEKDAY(DanKalendara)=WeekStartValue,CONCATENATE(\"Tjedan \",WEEKNUM(DanKalendara),\"/Dan \",DanKalendara-DATE(YEAR(DanKalendara),1,0)),CONCATENATE(\"Dan \",DanKalendara-DATE(YEAR(DanKalendara),1,0)))","v":"Tjedan 40/Dan 273"},{"$f":"IF(WEEKDAY(DanKalendara)=WeekStartValue,CONCATENATE(\"Tjedan \",WEEKNUM(DanKalendara),\"/Dan \",DanKalendara-DATE(YEAR(DanKalendara),1,0)),CONCATENATE(\"Dan \",DanKalendara-DATE(YEAR(DanKalendara),1,0)))","v":"Dan 274"}]

{"sheet":"LIS","index":9,"n_rows":20,"n_cols":9,"rows_kept":20,"merged":[[16,2,17,2],[17,4,19,8]]}
[null,"LIS",{"$f":"UPPER(TEXT(WeekStart,\"ddd\"))","v":"NED"},{"$f":"UPPER(TEXT(D3,\"aaa\"))","v":"PON"},"UTO","SRI","ČET","PET","SUB"]
[null,{"$f":"KalendarskaGodina","v":2018}]
[null,null,{"$f":"DaysAndWeeks+DATE(KalendarskaGodina,10,1)-WEEKDAY(DATE(KalendarskaGodina,10,1),(WeekStart=\"PON\")+1)+1","v":"2018-09-30"},"2018-10-01","2018-10-02","2018-10-03","2018-10-04","2018-10-05","2018-10-06"]
[null,null,{"$f":"IF(DAY(DanKalendara)=1,CONCATENATE(\"Tjedan \",WEEKNUM(DanKalendara),\"/Dan \",DanKalendara-DATE(YEAR(DanKalendara),1,0)),CONCATENATE(\"Dan \",DanKalendara-DATE(YEAR(DanKalendara),1,0)))","v":"Dan 273"},{"$f":"IF(DAY(DanKalendara)=1,CONCATENATE(\"Tjedan \",WEEKNUM(DanKalendara),\"/Dan \",DanKalendara-DATE(YEAR(DanKalendara),1,0)),CONCATENATE(\"Dan \",DanKalendara-DATE(YEAR(DanKalendara),1,0)))","v":"Tjedan 40/Dan 274"},{"$f":"IF(DAY(DanKalendara)=1,CONCATENATE(\"Tjedan \",WEEKNUM(DanKalendara),\"/Dan \",DanKalendara-DATE(YEAR(DanKalendara),1,0)),CONCATENATE(\"Dan \",DanKalendara-DATE(YEAR(DanKalendara),1,0)))","v":"Dan 275"},{"$f":"IF(DAY(DanKalendara)=1,CONCATENATE(\"Tjedan \",WEEKNUM(DanKalendara),\"/Dan \",DanKalendara-DATE(YEAR(DanKalendara),1,0)),CONCATENATE(\"Dan \",DanKalendara-DATE(YEAR(DanKalendara),1,0)))","v":"Dan 276"},{"$f":"IF(DAY(DanKalendara)=1,CONCATENATE(\"Tjedan \",WEEKNUM(DanKalendara),\"/Dan \",DanKalendara-DATE(YEAR(DanKalendara),1,0)),CONCATENATE(\"Dan \",DanKalendara-DATE(YEAR(DanKalendara),1,0)))","v":"Dan 277"},{"$f":"IF(DAY(DanKalendara)=1,CONCATENATE(\"Tjedan \",WEEKNUM(DanKalendara),\"/Dan \",DanKalendara-DATE(YEAR(DanKalendara),1,0)),CONCATENATE(\"Dan \",DanKalendara-DATE(YEAR(DanKalendara),1,0)))","v":"Dan 278"},{"$f":"IF(DAY(DanKalendara)=1,CONCATENATE(\"Tjedan \",WEEKNUM(DanKalendara),\"/Dan \",DanKalendara-DATE(YEAR(DanKalendara),1,0)),CONCATENATE(\"Dan \",DanKalendara-DATE(YEAR(DanKalendara),1,0)))","v":"Dan 279"}]
[]
[null,null,{"$f":"DaysAndWeeks+DATE(KalendarskaGodina,10,1)-WEEKDAY(DATE(KalendarskaGodina,10,1),(WeekStart=\"PON\")+1)+8","v":"2018-10-07"},"2018-10-08","2018-10-09","2018-10-10","2018-10-11","2018-10-12","2018-10-13"]
[null,null,{"$f":"IF(WEEKDAY(DanKalendara)=WeekStartValue,CONCATENATE(\"Tjedan \",WEEKNUM(DanKalendara),\"/Dan \",DanKalendara-DATE(YEAR(DanKalendara),1,0)),CONCATENATE(\"Dan \",DanKalendara-DATE(YEAR(DanKalendara),1,0)))","v":"Tjedan 41/Dan 280"},{"$f":"IF(WEEKDAY(DanKalendara)=WeekStartValue,CONCATENATE(\"Tjedan \",WEEKNUM(DanKalendara),\"/Dan \",DanKalendara-DATE(YEAR(DanKalendara),1,0)),CONCATENATE(\"Dan \",DanKalendara-DATE(YEAR(DanKalendara),1,0)))","v":"Dan 281"},{"$f":"IF(WEEKDAY(DanKalendara)=WeekStartValue,CONCATENATE(\"Tjedan \",WEEKNUM(DanKalendara),\"/Dan \",DanKalendara-DATE(YEAR(DanKalendara),1,0)),CONCATENATE(\"Dan \",DanKalendara-DATE(YEAR(DanKalendara),1,0)))","v":"Dan 282"},{"$f":"IF(WEEKDAY(DanKalendara)=WeekStartValue,CONCATENATE(\"Tjedan \",WEEKNUM(DanKalendara),\"/Dan \",DanKalendara-DATE(YEAR(DanKalendara),1,0)),CONCATENATE(\"Dan \",DanKalendara-DATE(YEAR(DanKalendara),1,0)))","v":"Dan 283"},{"$f":"IF(WEEKDAY(DanKalendara)=WeekStartValue,CONCATENATE(\"Tjedan \",WEEKNUM(DanKalendara),\"/Dan \",DanKalendara-DATE(YEAR(DanKalendara),1,0)),CONCATENATE(\"Dan \",DanKalendara-DATE(YEAR(DanKalendara),1,0)))","v":"Dan 284"},{"$f":"IF(WEEKDAY(DanKalendara)=WeekStartValue,CONCATENATE(\"Tjedan \",WEEKNUM(DanKalendara),\"/Dan \",DanKalendara-DATE(YEAR(DanKalendara),1,0)),CONCATENATE(\"Dan \",DanKalendara-DATE(YEAR(DanKalendara),1,0)))","v":"Dan 285"},{"$f":"IF(WEEKDAY(DanKalendara)=WeekStartValue,CONCATENATE(\"Tjedan \",WEEKNUM(DanKalendara),\"/Dan \",DanKalendara-DATE(YEAR(DanKalendara),1,0)),CONCATENATE(\"Dan \",DanKalendara-DATE(YEAR(DanKalendara),1,0)))","v":"Dan 286"}]
[]
[null,null,{"$f":"DaysAndWeeks+DATE(KalendarskaGodina,10,1)-WEEKDAY(DATE(KalendarskaGodina,10,1),(WeekStart=\"PON\")+1)+15","v":"2018-10-14"},"2018-10-15","2018-10-16","2018-10-17","2018-10-18","2018-10-19","2018-10-20"]
[null,null,{"$f":"IF(WEEKDAY(DanKalendara)=WeekStartValue,CONCATENATE(\"Tjedan \",WEEKNUM(DanKalendara),\"/Dan \",DanKalendara-DATE(YEAR(DanKalendara),1,0)),CONCATENATE(\"Dan \",DanKalendara-DATE(YEAR(DanKalendara),1,0)))","v":"Tjedan 42/Dan 287"},{"$f":"IF(WEEKDAY(DanKalendara)=WeekStartValue,CONCATENATE(\"Tjedan \",WEEKNUM(DanKalendara),\"/Dan \",DanKalendara-DATE(YEAR(DanKalendara),1,0)),CONCATENATE(\"Dan \",DanKalendara-DATE(YEAR(DanKalendara),1,0)))","v":"Dan 288"},{"$f":"IF(WEEKDAY(DanKalendara)=WeekStartValue,CONCATENATE(\"Tjedan \",WEEKNUM(DanKalendara),\"/Dan \",DanKalendara-DATE(YEAR(DanKalendara),1,0)),CONCATENATE(\"Dan \",DanKalendara-DATE(YEAR(DanKalendara),1,0)))","v":"Dan 289"},{"$f":"IF(WEEKDAY(DanKalendara)=WeekStartValue,CONCATENATE(\"Tjedan \",WEEKNUM(DanKalendara),\"/Dan \",DanKalendara-DATE(YEAR(DanKalendara),1,0)),CONCATENATE(\"Dan \",DanKalendara-DATE(YEAR(DanKalendara),1,0)))","v":"Dan 290"},{"$f":"IF(WEEKDAY(DanKalendara)=WeekStartValue,CONCATENATE(\"Tjedan \",WEEKNUM(DanKalendara),\"/Dan \",DanKalendara-DATE(YEAR(DanKalendara),1,0)),CONCATENATE(\"Dan \",DanKalendara-DATE(YEAR(DanKalendara),1,0)))","v":"Dan 291"},{"$f":"IF(WEEKDAY(DanKalendara)=WeekStartValue,CONCATENATE(\"Tjedan \",WEEKNUM(DanKalendara),\"/Dan \",DanKalendara-DATE(YEAR(DanKalendara),1,0)),CONCATENATE(\"Dan \",DanKalendara-DATE(YEAR(DanKalendara),1,0)))","v":"Dan 292"},{"$f":"IF(WEEKDAY(DanKalendara)=WeekStartValue,CONCATENATE(\"Tjedan \",WEEKNUM(DanKalendara),\"/Dan \",DanKalendara-DATE(YEAR(DanKalendara),1,0)),CONCATENATE(\"Dan \",DanKalendara-DATE(YEAR(DanKalendara),1,0)))","v":"Dan 293"}]
[]
[null,null,{"$f":"DaysAndWeeks+DATE(KalendarskaGodina,10,1)-WEEKDAY(DATE(KalendarskaGodina,10,1),(WeekStart=\"PON\")+1)+22","v":"2018-10-21"},"2018-10-22","2018-10-23","2018-10-24","2018-10-25","2018-10-26","2018-10-27"]
[null,null,{"$f":"IF(WEEKDAY(DanKalendara)=WeekStartValue,CONCATENATE(\"Tjedan \",WEEKNUM(DanKalendara),\"/Dan \",DanKalendara-DATE(YEAR(DanKalendara),1,0)),CONCATENATE(\"Dan \",DanKalendara-DATE(YEAR(DanKalendara),1,0)))","v":"Tjedan 43/Dan 294"},{"$f":"IF(WEEKDAY(DanKalendara)=WeekStartValue,CONCATENATE(\"Tjedan \",WEEKNUM(DanKalendara),\"/Dan \",DanKalendara-DATE(YEAR(DanKalendara),1,0)),CONCATENATE(\"Dan \",DanKalendara-DATE(YEAR(DanKalendara),1,0)))","v":"Dan 295"},{"$f":"IF(WEEKDAY(DanKalendara)=WeekStartValue,CONCATENATE(\"Tjedan \",WEEKNUM(DanKalendara),\"/Dan \",DanKalendara-DATE(YEAR(DanKalendara),1,0)),CONCATENATE(\"Dan \",DanKalendara-DATE(YEAR(DanKalendara),1,0)))","v":"Dan 296"},{"$f":"IF(WEEKDAY(DanKalendara)=WeekStartValue,CONCATENATE(\"Tjedan \",WEEKNUM(DanKalendara),\"/Dan \",DanKalendara-DATE(YEAR(DanKalendara),1,0)),CONCATENATE(\"Dan \",DanKalendara-DATE(YEAR(DanKalendara),1,0)))","v":"Dan 297"},{"$f":"IF(WEEKDAY(DanKalendara)=WeekStartValue,CONCATENATE(\"Tjedan \",WEEKNUM(DanKalendara),\"/Dan \",DanKalendara-DATE(YEAR(DanKalendara),1,0)),CONCATENATE(\"Dan \",DanKalendara-DATE(YEAR(DanKalendara),1,0)))","v":"Dan 298"},{"$f":"IF(WEEKDAY(DanKalendara)=WeekStartValue,CONCATENATE(\"Tjedan \",WEEKNUM(DanKalendara),\"/Dan \",DanKalendara-DATE(YEAR(DanKalendara),1,0)),CONCATENATE(\"Dan \",DanKalendara-DATE(YEAR(DanKalendara),1,0)))","v":"Dan 299"},{"$f":"IF(WEEKDAY(DanKalendara)=WeekStartValue,CONCATENATE(\"Tjedan \",WEEKNUM(DanKalendara),\"/Dan \",DanKalendara-DATE(YEAR(DanKalendara),1,0)),CONCATENATE(\"Dan \",DanKalendara-DATE(YEAR(DanKalendara),1,0)))","v":"Dan 300"}]
[]
[null,null,{"$f":"DaysAndWeeks+DATE(KalendarskaGodina,10,1)-WEEKDAY(DATE(KalendarskaGodina,10,1),(WeekStart=\"PON\")+1)+29","v":"2018-10-28"},"2018-10-29","2018-10-30","2018-10-31","2018-11-01","2018-11-02","2018-11-03"]
[null,null,{"$f":"IF(WEEKDAY(DanKalendara)=WeekStartValue,CONCATENATE(\"Tjedan \",WEEKNUM(DanKalendara),\"/Dan \",DanKalendara-DATE(YEAR(DanKalendara),1,0)),CONCATENATE(\"Dan \",DanKalendara-DATE(YEAR(DanKalendara),1,0)))","v":"Tjedan 44/Dan 301"},{"$f":"IF(WEEKDAY(DanKalendara)=WeekStartValue,CONCATENATE(\"Tjedan \",WEEKNUM(DanKalendara),\"/Dan \",DanKalendara-DATE(YEAR(DanKalendara),1,0)),CONCATENATE(\"Dan \",DanKalendara-DATE(YEAR(DanKalendara),1,0)))","v":"Dan 302"},{"$f":"IF(WEEKDAY(DanKalendara)=WeekStartValue,CONCATENATE(\"Tjedan \",WEEKNUM(DanKalendara),\"/Dan \",DanKalendara-DATE(YEAR(DanKalendara),1,0)),CONCATENATE(\"Dan \",DanKalendara-DATE(YEAR(DanKalendara),1,0)))","v":"Dan 303"},{"$f":"IF(WEEKDAY(DanKalendara)=WeekStartValue,CONCATENATE(\"Tjedan \",WEEKNUM(DanKalendara),\"/Dan \",DanKalendara-DATE(YEAR(DanKalendara),1,0)),CONCATENATE(\"Dan \",DanKalendara-DATE(YEAR(DanKalendara),1,0)))","v":"Dan 304"},{"$f":"IF(WEEKDAY(DanKalendara)=WeekStartValue,CONCATENATE(\"Tjedan \",WEEKNUM(DanKalendara),\"/Dan \",DanKalendara-DATE(YEAR(DanKalendara),1,0)),CONCATENATE(\"Dan \",DanKalendara-DATE(YEAR(DanKalendara),1,0)))","v":"Dan 305"},{"$f":"IF(WEEKDAY(DanKalendara)=WeekStartValue,CONCATENATE(\"Tjedan \",WEEKNUM(DanKalendara),\"/Dan \",DanKalendara-DATE(YEAR(DanKalendara),1,0)),CONCATENATE(\"Dan \",DanKalendara-DATE(YEAR(DanKalendara),1,0)))","v":"Dan 306"},{"$f":"IF(WEEKDAY(DanKalendara)=WeekStartValue,CONCATENATE(\"Tjedan \",WEEKNUM(DanKalendara),\"/Dan \",DanKalendara-DATE(YEAR(DanKalendara),1,0)),CONCATENATE(\"Dan \",DanKalendara-DATE(YEAR(DanKalendara),1,0)))","v":"Dan 307"}]
[{"$nulls":4},"BILJEŠKE"]
[]
[null,null,{"$f":"DaysAndWeeks+DATE(KalendarskaGodina,10,1)-WEEKDAY(DATE(KalendarskaGodina,10,1),(WeekStart=\"PON\")+1)+36","v":"2018-11-04"},"2018-11-05"]
[null,null,{"$f":"IF(WEEKDAY(DanKalendara)=WeekStartValue,CONCATENATE(\"Tjedan \",WEEKNUM(DanKalendara),\"/Dan \",DanKalendara-DATE(YEAR(DanKalendara),1,0)),CONCATENATE(\"Dan \",DanKalendara-DATE(YEAR(DanKalendara),1,0)))","v":"Tjedan 45/Dan 308"},{"$f":"IF(WEEKDAY(DanKalendara)=WeekStartValue,CONCATENATE(\"Tjedan \",WEEKNUM(DanKalendara),\"/Dan \",DanKalendara-DATE(YEAR(DanKalendara),1,0)),CONCATENATE(\"Dan \",DanKalendara-DATE(YEAR(DanKalendara),1,0)))","v":"Dan 309"}]

{"sheet":"STU","index":10,"n_rows":20,"n_cols":9,"rows_kept":20,"merged":[[16,2,17,2],[17,4,19,8]]}
[null,"STU",{"$f":"UPPER(TEXT(WeekStart,\"ddd\"))","v":"NED"},{"$f":"UPPER(TEXT(D3,\"aaa\"))","v":"PON"},"UTO","SRI","ČET","PET","SUB"]
[null,{"$f":"KalendarskaGodina","v":2018}]
[null,null,{"$f":"DaysAndWeeks+DATE(KalendarskaGodina,11,1)-WEEKDAY(DATE(KalendarskaGodina,11,1),(WeekStart=\"PON\")+1)+1","v":"2018-10-28"},"2018-10-29","2018-10-30","2018-10-31","2018-11-01","2018-11-02","2018-11-03"]
[null,null,{"$f":"IF(DAY(DanKalendara)=1,CONCATENATE(\"Tjedan \",WEEKNUM(DanKalendara),\"/Dan \",DanKalendara-DATE(YEAR(DanKalendara),1,0)),CONCATENATE(\"Dan \",DanKalendara-DATE(YEAR(DanKalendara),1,0)))","v":"Dan 301"},{"$f":"IF(DAY(DanKalendara)=1,CONCATENATE(\"Tjedan \",WEEKNUM(DanKalendara),\"/Dan \",DanKalendara-DATE(YEAR(DanKalendara),1,0)),CONCATENATE(\"Dan \",DanKalendara-DATE(YEAR(DanKalendara),1,0)))","v":"Dan 302"},{"$f":"IF(DAY(DanKalendara)=1,CONCATENATE(\"Tjedan \",WEEKNUM(DanKalendara),\"/Dan \",DanKalendara-DATE(YEAR(DanKalendara),1,0)),CONCATENATE(\"Dan \",DanKalendara-DATE(YEAR(DanKalendara),1,0)))","v":"Dan 303"},{"$f":"IF(DAY(DanKalendara)=1,CONCATENATE(\"Tjedan \",WEEKNUM(DanKalendara),\"/Dan \",DanKalendara-DATE(YEAR(DanKalendara),1,0)),CONCATENATE(\"Dan \",DanKalendara-DATE(YEAR(DanKalendara),1,0)))","v":"Dan 304"},{"$f":"IF(DAY(DanKalendara)=1,CONCATENATE(\"Tjedan \",WEEKNUM(DanKalendara),\"/Dan \",DanKalendara-DATE(YEAR(DanKalendara),1,0)),CONCATENATE(\"Dan \",DanKalendara-DATE(YEAR(DanKalendara),1,0)))","v":"Tjedan 44/Dan 305"},{"$f":"IF(DAY(DanKalendara)=1,CONCATENATE(\"Tjedan \",WEEKNUM(DanKalendara),\"/Dan \",DanKalendara-DATE(YEAR(DanKalendara),1,0)),CONCATENATE(\"Dan \",DanKalendara-DATE(YEAR(DanKalendara),1,0)))","v":"Dan 306"},{"$f":"IF(DAY(DanKalendara)=1,CONCATENATE(\"Tjedan \",WEEKNUM(DanKalendara),\"/Dan \",DanKalendara-DATE(YEAR(DanKalendara),1,0)),CONCATENATE(\"Dan \",DanKalendara-DATE(YEAR(DanKalendara),1,0)))","v":"Dan 307"}]
[]
[null,null,{"$f":"DaysAndWeeks+DATE(KalendarskaGodina,11,1)-WEEKDAY(DATE(KalendarskaGodina,11,1),(WeekStart=\"PON\")+1)+8","v":"2018-11-04"},"2018-11-05","2018-11-06","2018-11-07","2018-11-08","2018-11-09","2018-11-10"]
[null,null,{"$f":"IF(WEEKDAY(DanKalendara)=WeekStartValue,CONCATENATE(\"Tjedan \",WEEKNUM(DanKalendara),\"/Dan \",DanKalendara-DATE(YEAR(DanKalendara),1,0)),CONCATENATE(\"Dan \",DanKalendara-DATE(YEAR(DanKalendara),1,0)))","v":"Tjedan 45/Dan 308"},{"$f":"IF(WEEKDAY(DanKalendara)=WeekStartValue,CONCATENATE(\"Tjedan \",WEEKNUM(DanKalendara),\"/Dan \",DanKalendara-DATE(YEAR(DanKalendara),1,0)),CONCATENATE(\"Dan \",DanKalendara-DATE(YEAR(DanKalendara),1,0)))","v":"Dan 309"},{"$f":"IF(WEEKDAY(DanKalendara)=WeekStartValue,CONCATENATE(\"Tjedan \",WEEKNUM(DanKalendara),\"/Dan \",DanKalendara-DATE(YEAR(DanKalendara),1,0)),CONCATENATE(\"Dan \",DanKalendara-DATE(YEAR(DanKalendara),1,0)))","v":"Dan 310"},{"$f":"IF(WEEKDAY(DanKalendara)=WeekStartValue,CONCATENATE(\"Tjedan \",WEEKNUM(DanKalendara),\"/Dan \",DanKalendara-DATE(YEAR(DanKalendara),1,0)),CONCATENATE(\"Dan \",DanKalendara-DATE(YEAR(DanKalendara),1,0)))","v":"Dan 311"},{"$f":"IF(WEEKDAY(DanKalendara)=WeekStartValue,CONCATENATE(\"Tjedan \",WEEKNUM(DanKalendara),\"/Dan \",DanKalendara-DATE(YEAR(DanKalendara),1,0)),CONCATENATE(\"Dan \",DanKalendara-DATE(YEAR(DanKalendara),1,0)))","v":"Dan 312"},{"$f":"IF(WEEKDAY(DanKalendara)=WeekStartValue,CONCATENATE(\"Tjedan \",WEEKNUM(DanKalendara),\"/Dan \",DanKalendara-DATE(YEAR(DanKalendara),1,0)),CONCATENATE(\"Dan \",DanKalendara-DATE(YEAR(DanKalendara),1,0)))","v":"Dan 313"},{"$f":"IF(WEEKDAY(DanKalendara)=WeekStartValue,CONCATENATE(\"Tjedan \",WEEKNUM(DanKalendara),\"/Dan \",DanKalendara-DATE(YEAR(DanKalendara),1,0)),CONCATENATE(\"Dan \",DanKalendara-DATE(YEAR(DanKalendara),1,0)))","v":"Dan 314"}]
[]
[null,null,{"$f":"DaysAndWeeks+DATE(KalendarskaGodina,11,1)-WEEKDAY(DATE(KalendarskaGodina,11,1),(WeekStart=\"PON\")+1)+15","v":"2018-11-11"},"2018-11-12","2018-11-13","2018-11-14","2018-11-15","2018-11-16","2018-11-17"]
[null,null,{"$f":"IF(WEEKDAY(DanKalendara)=WeekStartValue,CONCATENATE(\"Tjedan \",WEEKNUM(DanKalendara),\"/Dan \",DanKalendara-DATE(YEAR(DanKalendara),1,0)),CONCATENATE(\"Dan \",DanKalendara-DATE(YEAR(DanKalendara),1,0)))","v":"Tjedan 46/Dan 315"},{"$f":"IF(WEEKDAY(DanKalendara)=WeekStartValue,CONCATENATE(\"Tjedan \",WEEKNUM(DanKalendara),\"/Dan \",DanKalendara-DATE(YEAR(DanKalendara),1,0)),CONCATENATE(\"Dan \",DanKalendara-DATE(YEAR(DanKalendara),1,0)))","v":"Dan 316"},{"$f":"IF(WEEKDAY(DanKalendara)=WeekStartValue,CONCATENATE(\"Tjedan \",WEEKNUM(DanKalendara),\"/Dan \",DanKalendara-DATE(YEAR(DanKalendara),1,0)),CONCATENATE(\"Dan \",DanKalendara-DATE(YEAR(DanKalendara),1,0)))","v":"Dan 317"},{"$f":"IF(WEEKDAY(DanKalendara)=WeekStartValue,CONCATENATE(\"Tjedan \",WEEKNUM(DanKalendara),\"/Dan \",DanKalendara-DATE(YEAR(DanKalendara),1,0)),CONCATENATE(\"Dan \",DanKalendara-DATE(YEAR(DanKalendara),1,0)))","v":"Dan 318"},{"$f":"IF(WEEKDAY(DanKalendara)=WeekStartValue,CONCATENATE(\"Tjedan \",WEEKNUM(DanKalendara),\"/Dan \",DanKalendara-DATE(YEAR(DanKalendara),1,0)),CONCATENATE(\"Dan \",DanKalendara-DATE(YEAR(DanKalendara),1,0)))","v":"Dan 319"},{"$f":"IF(WEEKDAY(DanKalendara)=WeekStartValue,CONCATENATE(\"Tjedan \",WEEKNUM(DanKalendara),\"/Dan \",DanKalendara-DATE(YEAR(DanKalendara),1,0)),CONCATENATE(\"Dan \",DanKalendara-DATE(YEAR(DanKalendara),1,0)))","v":"Dan 320"},{"$f":"IF(WEEKDAY(DanKalendara)=WeekStartValue,CONCATENATE(\"Tjedan \",WEEKNUM(DanKalendara),\"/Dan \",DanKalendara-DATE(YEAR(DanKalendara),1,0)),CONCATENATE(\"Dan \",DanKalendara-DATE(YEAR(DanKalendara),1,0)))","v":"Dan 321"}]
[]
[null,null,{"$f":"DaysAndWeeks+DATE(KalendarskaGodina,11,1)-WEEKDAY(DATE(KalendarskaGodina,11,1),(WeekStart=\"PON\")+1)+22","v":"2018-11-18"},"2018-11-19","2018-11-20","2018-11-21","2018-11-22","2018-11-23","2018-11-24"]
[null,null,{"$f":"IF(WEEKDAY(DanKalendara)=WeekStartValue,CONCATENATE(\"Tjedan \",WEEKNUM(DanKalendara),\"/Dan \",DanKalendara-DATE(YEAR(DanKalendara),1,0)),CONCATENATE(\"Dan \",DanKalendara-DATE(YEAR(DanKalendara),1,0)))","v":"Tjedan 47/Dan 322"},{"$f":"IF(WEEKDAY(DanKalendara)=WeekStartValue,CONCATENATE(\"Tjedan \",WEEKNUM(DanKalendara),\"/Dan \",DanKalendara-DATE(YEAR(DanKalendara),1,0)),CONCATENATE(\"Dan \",DanKalendara-DATE(YEAR(DanKalendara),1,0)))","v":"Dan 323"},{"$f":"IF(WEEKDAY(DanKalendara)=WeekStartValue,CONCATENATE(\"Tjedan \",WEEKNUM(DanKalendara),\"/Dan \",DanKalendara-DATE(YEAR(DanKalendara),1,0)),CONCATENATE(\"Dan \",DanKalendara-DATE(YEAR(DanKalendara),1,0)))","v":"Dan 324"},{"$f":"IF(WEEKDAY(DanKalendara)=WeekStartValue,CONCATENATE(\"Tjedan \",WEEKNUM(DanKalendara),\"/Dan \",DanKalendara-DATE(YEAR(DanKalendara),1,0)),CONCATENATE(\"Dan \",DanKalendara-DATE(YEAR(DanKalendara),1,0)))","v":"Dan 325"},{"$f":"IF(WEEKDAY(DanKalendara)=WeekStartValue,CONCATENATE(\"Tjedan \",WEEKNUM(DanKalendara),\"/Dan \",DanKalendara-DATE(YEAR(DanKalendara),1,0)),CONCATENATE(\"Dan \",DanKalendara-DATE(YEAR(DanKalendara),1,0)))","v":"Dan 326"},{"$f":"IF(WEEKDAY(DanKalendara)=WeekStartValue,CONCATENATE(\"Tjedan \",WEEKNUM(DanKalendara),\"/Dan \",DanKalendara-DATE(YEAR(DanKalendara),1,0)),CONCATENATE(\"Dan \",DanKalendara-DATE(YEAR(DanKalendara),1,0)))","v":"Dan 327"},{"$f":"IF(WEEKDAY(DanKalendara)=WeekStartValue,CONCATENATE(\"Tjedan \",WEEKNUM(DanKalendara),\"/Dan \",DanKalendara-DATE(YEAR(DanKalendara),1,0)),CONCATENATE(\"Dan \",DanKalendara-DATE(YEAR(DanKalendara),1,0)))","v":"Dan 328"}]
[]
[null,null,{"$f":"DaysAndWeeks+DATE(KalendarskaGodina,11,1)-WEEKDAY(DATE(KalendarskaGodina,11,1),(WeekStart=\"PON\")+1)+29","v":"2018-11-25"},"2018-11-26","2018-11-27","2018-11-28","2018-11-29","2018-11-30","2018-12-01"]
[null,null,{"$f":"IF(WEEKDAY(DanKalendara)=WeekStartValue,CONCATENATE(\"Tjedan \",WEEKNUM(DanKalendara),\"/Dan \",DanKalendara-DATE(YEAR(DanKalendara),1,0)),CONCATENATE(\"Dan \",DanKalendara-DATE(YEAR(DanKalendara),1,0)))","v":"Tjedan 48/Dan 329"},{"$f":"IF(WEEKDAY(DanKalendara)=WeekStartValue,CONCATENATE(\"Tjedan \",WEEKNUM(DanKalendara),\"/Dan \",DanKalendara-DATE(YEAR(DanKalendara),1,0)),CONCATENATE(\"Dan \",DanKalendara-DATE(YEAR(DanKalendara),1,0)))","v":"Dan 330"},{"$f":"IF(WEEKDAY(DanKalendara)=WeekStartValue,CONCATENATE(\"Tjedan \",WEEKNUM(DanKalendara),\"/Dan \",DanKalendara-DATE(YEAR(DanKalendara),1,0)),CONCATENATE(\"Dan \",DanKalendara-DATE(YEAR(DanKalendara),1,0)))","v":"Dan 331"},{"$f":"IF(WEEKDAY(DanKalendara)=WeekStartValue,CONCATENATE(\"Tjedan \",WEEKNUM(DanKalendara),\"/Dan \",DanKalendara-DATE(YEAR(DanKalendara),1,0)),CONCATENATE(\"Dan \",DanKalendara-DATE(YEAR(DanKalendara),1,0)))","v":"Dan 332"},{"$f":"IF(WEEKDAY(DanKalendara)=WeekStartValue,CONCATENATE(\"Tjedan \",WEEKNUM(DanKalendara),\"/Dan \",DanKalendara-DATE(YEAR(DanKalendara),1,0)),CONCATENATE(\"Dan \",DanKalendara-DATE(YEAR(DanKalendara),1,0)))","v":"Dan 333"},{"$f":"IF(WEEKDAY(DanKalendara)=WeekStartValue,CONCATENATE(\"Tjedan \",WEEKNUM(DanKalendara),\"/Dan \",DanKalendara-DATE(YEAR(DanKalendara),1,0)),CONCATENATE(\"Dan \",DanKalendara-DATE(YEAR(DanKalendara),1,0)))","v":"Dan 334"},{"$f":"IF(WEEKDAY(DanKalendara)=WeekStartValue,CONCATENATE(\"Tjedan \",WEEKNUM(DanKalendara),\"/Dan \",DanKalendara-DATE(YEAR(DanKalendara),1,0)),CONCATENATE(\"Dan \",DanKalendara-DATE(YEAR(DanKalendara),1,0)))","v":"Dan 335"}]
[{"$nulls":4},"BILJEŠKE"]
[]
[null,null,{"$f":"DaysAndWeeks+DATE(KalendarskaGodina,11,1)-WEEKDAY(DATE(KalendarskaGodina,11,1),(WeekStart=\"PON\")+1)+36","v":"2018-12-02"},"2018-12-03"]
[null,null,{"$f":"IF(WEEKDAY(DanKalendara)=WeekStartValue,CONCATENATE(\"Tjedan \",WEEKNUM(DanKalendara),\"/Dan \",DanKalendara-DATE(YEAR(DanKalendara),1,0)),CONCATENATE(\"Dan \",DanKalendara-DATE(YEAR(DanKalendara),1,0)))","v":"Tjedan 49/Dan 336"},{"$f":"IF(WEEKDAY(DanKalendara)=WeekStartValue,CONCATENATE(\"Tjedan \",WEEKNUM(DanKalendara),\"/Dan \",DanKalendara-DATE(YEAR(DanKalendara),1,0)),CONCATENATE(\"Dan \",DanKalendara-DATE(YEAR(DanKalendara),1,0)))","v":"Dan 337"}]

{"sheet":"PRO","index":11,"n_rows":20,"n_cols":9,"rows_kept":20,"merged":[[16,2,17,2],[17,4,19,8]]}
[null,"PRO",{"$f":"UPPER(TEXT(WeekStart,\"ddd\"))","v":"NED"},{"$f":"UPPER(TEXT(D3,\"aaa\"))","v":"PON"},"UTO","SRI","ČET","PET","SUB"]
[null,{"$f":"KalendarskaGodina","v":2018}]
[null,null,{"$f":"DaysAndWeeks+DATE(KalendarskaGodina,12,1)-WEEKDAY(DATE(KalendarskaGodina,12,1),(WeekStart=\"PON\")+1)+1","v":"2018-11-25"},"2018-11-26","2018-11-27","2018-11-28","2018-11-29","2018-11-30","2018-12-01"]
[null,null,{"$f":"IF(DAY(DanKalendara)=1,CONCATENATE(\"Tjedan \",WEEKNUM(DanKalendara),\"/Dan \",DanKalendara-DATE(YEAR(DanKalendara),1,0)),CONCATENATE(\"Dan \",DanKalendara-DATE(YEAR(DanKalendara),1,0)))","v":"Dan 329"},{"$f":"IF(DAY(DanKalendara)=1,CONCATENATE(\"Tjedan \",WEEKNUM(DanKalendara),\"/Dan \",DanKalendara-DATE(YEAR(DanKalendara),1,0)),CONCATENATE(\"Dan \",DanKalendara-DATE(YEAR(DanKalendara),1,0)))","v":"Dan 330"},{"$f":"IF(DAY(DanKalendara)=1,CONCATENATE(\"Tjedan \",WEEKNUM(DanKalendara),\"/Dan \",DanKalendara-DATE(YEAR(DanKalendara),1,0)),CONCATENATE(\"Dan \",DanKalendara-DATE(YEAR(DanKalendara),1,0)))","v":"Dan 331"},{"$f":"IF(DAY(DanKalendara)=1,CONCATENATE(\"Tjedan \",WEEKNUM(DanKalendara),\"/Dan \",DanKalendara-DATE(YEAR(DanKalendara),1,0)),CONCATENATE(\"Dan \",DanKalendara-DATE(YEAR(DanKalendara),1,0)))","v":"Dan 332"},{"$f":"IF(DAY(DanKalendara)=1,CONCATENATE(\"Tjedan \",WEEKNUM(DanKalendara),\"/Dan \",DanKalendara-DATE(YEAR(DanKalendara),1,0)),CONCATENATE(\"Dan \",DanKalendara-DATE(YEAR(DanKalendara),1,0)))","v":"Dan 333"},{"$f":"IF(DAY(DanKalendara)=1,CONCATENATE(\"Tjedan \",WEEKNUM(DanKalendara),\"/Dan \",DanKalendara-DATE(YEAR(DanKalendara),1,0)),CONCATENATE(\"Dan \",DanKalendara-DATE(YEAR(DanKalendara),1,0)))","v":"Dan 334"},{"$f":"IF(DAY(DanKalendara)=1,CONCATENATE(\"Tjedan \",WEEKNUM(DanKalendara),\"/Dan \",DanKalendara-DATE(YEAR(DanKalendara),1,0)),CONCATENATE(\"Dan \",DanKalendara-DATE(YEAR(DanKalendara),1,0)))","v":"Tjedan 48/Dan 335"}]
[]
[null,null,{"$f":"DaysAndWeeks+DATE(KalendarskaGodina,12,1)-WEEKDAY(DATE(KalendarskaGodina,12,1),(WeekStart=\"PON\")+1)+8","v":"2018-12-02"},"2018-12-03","2018-12-04","2018-12-05","2018-12-06","2018-12-07","2018-12-08"]
[null,null,{"$f":"IF(WEEKDAY(DanKalendara)=WeekStartValue,CONCATENATE(\"Tjedan \",WEEKNUM(DanKalendara),\"/Dan \",DanKalendara-DATE(YEAR(DanKalendara),1,0)),CONCATENATE(\"Dan \",DanKalendara-DATE(YEAR(DanKalendara),1,0)))","v":"Tjedan 49/Dan 336"},{"$f":"IF(WEEKDAY(DanKalendara)=WeekStartValue,CONCATENATE(\"Tjedan \",WEEKNUM(DanKalendara),\"/Dan \",DanKalendara-DATE(YEAR(DanKalendara),1,0)),CONCATENATE(\"Dan \",DanKalendara-DATE(YEAR(DanKalendara),1,0)))","v":"Dan 337"},{"$f":"IF(WEEKDAY(DanKalendara)=WeekStartValue,CONCATENATE(\"Tjedan \",WEEKNUM(DanKalendara),\"/Dan \",DanKalendara-DATE(YEAR(DanKalendara),1,0)),CONCATENATE(\"Dan \",DanKalendara-DATE(YEAR(DanKalendara),1,0)))","v":"Dan 338"},{"$f":"IF(WEEKDAY(DanKalendara)=WeekStartValue,CONCATENATE(\"Tjedan \",WEEKNUM(DanKalendara),\"/Dan \",DanKalendara-DATE(YEAR(DanKalendara),1,0)),CONCATENATE(\"Dan \",DanKalendara-DATE(YEAR(DanKalendara),1,0)))","v":"Dan 339"},{"$f":"IF(WEEKDAY(DanKalendara)=WeekStartValue,CONCATENATE(\"Tjedan \",WEEKNUM(DanKalendara),\"/Dan \",DanKalendara-DATE(YEAR(DanKalendara),1,0)),CONCATENATE(\"Dan \",DanKalendara-DATE(YEAR(DanKalendara),1,0)))","v":"Dan 340"},{"$f":"IF(WEEKDAY(DanKalendara)=WeekStartValue,CONCATENATE(\"Tjedan \",WEEKNUM(DanKalendara),\"/Dan \",DanKalendara-DATE(YEAR(DanKalendara),1,0)),CONCATENATE(\"Dan \",DanKalendara-DATE(YEAR(DanKalendara),1,0)))","v":"Dan 341"},{"$f":"IF(WEEKDAY(DanKalendara)=WeekStartValue,CONCATENATE(\"Tjedan \",WEEKNUM(DanKalendara),\"/Dan \",DanKalendara-DATE(YEAR(DanKalendara),1,0)),CONCATENATE(\"Dan \",DanKalendara-DATE(YEAR(DanKalendara),1,0)))","v":"Dan 342"}]
[]
[null,null,{"$f":"DaysAndWeeks+DATE(KalendarskaGodina,12,1)-WEEKDAY(DATE(KalendarskaGodina,12,1),(WeekStart=\"PON\")+1)+15","v":"2018-12-09"},"2018-12-10","2018-12-11","2018-12-12","2018-12-13","2018-12-14","2018-12-15"]
[null,null,{"$f":"IF(WEEKDAY(DanKalendara)=WeekStartValue,CONCATENATE(\"Tjedan \",WEEKNUM(DanKalendara),\"/Dan \",DanKalendara-DATE(YEAR(DanKalendara),1,0)),CONCATENATE(\"Dan \",DanKalendara-DATE(YEAR(DanKalendara),1,0)))","v":"Tjedan 50/Dan 343"},{"$f":"IF(WEEKDAY(DanKalendara)=WeekStartValue,CONCATENATE(\"Tjedan \",WEEKNUM(DanKalendara),\"/Dan \",DanKalendara-DATE(YEAR(DanKalendara),1,0)),CONCATENATE(\"Dan \",DanKalendara-DATE(YEAR(DanKalendara),1,0)))","v":"Dan 344"},{"$f":"IF(WEEKDAY(DanKalendara)=WeekStartValue,CONCATENATE(\"Tjedan \",WEEKNUM(DanKalendara),\"/Dan \",DanKalendara-DATE(YEAR(DanKalendara),1,0)),CONCATENATE(\"Dan \",DanKalendara-DATE(YEAR(DanKalendara),1,0)))","v":"Dan 345"},{"$f":"IF(WEEKDAY(DanKalendara)=WeekStartValue,CONCATENATE(\"Tjedan \",WEEKNUM(DanKalendara),\"/Dan \",DanKalendara-DATE(YEAR(DanKalendara),1,0)),CONCATENATE(\"Dan \",DanKalendara-DATE(YEAR(DanKalendara),1,0)))","v":"Dan 346"},{"$f":"IF(WEEKDAY(DanKalendara)=WeekStartValue,CONCATENATE(\"Tjedan \",WEEKNUM(DanKalendara),\"/Dan \",DanKalendara-DATE(YEAR(DanKalendara),1,0)),CONCATENATE(\"Dan \",DanKalendara-DATE(YEAR(DanKalendara),1,0)))","v":"Dan 347"},{"$f":"IF(WEEKDAY(DanKalendara)=WeekStartValue,CONCATENATE(\"Tjedan \",WEEKNUM(DanKalendara),\"/Dan \",DanKalendara-DATE(YEAR(DanKalendara),1,0)),CONCATENATE(\"Dan \",DanKalendara-DATE(YEAR(DanKalendara),1,0)))","v":"Dan 348"},{"$f":"IF(WEEKDAY(DanKalendara)=WeekStartValue,CONCATENATE(\"Tjedan \",WEEKNUM(DanKalendara),\"/Dan \",DanKalendara-DATE(YEAR(DanKalendara),1,0)),CONCATENATE(\"Dan \",DanKalendara-DATE(YEAR(DanKalendara),1,0)))","v":"Dan 349"}]
[]
[null,null,{"$f":"DaysAndWeeks+DATE(KalendarskaGodina,12,1)-WEEKDAY(DATE(KalendarskaGodina,12,1),(WeekStart=\"PON\")+1)+22","v":"2018-12-16"},"2018-12-17","2018-12-18","2018-12-19","2018-12-20","2018-12-21","2018-12-22"]
[null,null,{"$f":"IF(WEEKDAY(DanKalendara)=WeekStartValue,CONCATENATE(\"Tjedan \",WEEKNUM(DanKalendara),\"/Dan \",DanKalendara-DATE(YEAR(DanKalendara),1,0)),CONCATENATE(\"Dan \",DanKalendara-DATE(YEAR(DanKalendara),1,0)))","v":"Tjedan 51/Dan 350"},{"$f":"IF(WEEKDAY(DanKalendara)=WeekStartValue,CONCATENATE(\"Tjedan \",WEEKNUM(DanKalendara),\"/Dan \",DanKalendara-DATE(YEAR(DanKalendara),1,0)),CONCATENATE(\"Dan \",DanKalendara-DATE(YEAR(DanKalendara),1,0)))","v":"Dan 351"},{"$f":"IF(WEEKDAY(DanKalendara)=WeekStartValue,CONCATENATE(\"Tjedan \",WEEKNUM(DanKalendara),\"/Dan \",DanKalendara-DATE(YEAR(DanKalendara),1,0)),CONCATENATE(\"Dan \",DanKalendara-DATE(YEAR(DanKalendara),1,0)))","v":"Dan 352"},{"$f":"IF(WEEKDAY(DanKalendara)=WeekStartValue,CONCATENATE(\"Tjedan \",WEEKNUM(DanKalendara),\"/Dan \",DanKalendara-DATE(YEAR(DanKalendara),1,0)),CONCATENATE(\"Dan \",DanKalendara-DATE(YEAR(DanKalendara),1,0)))","v":"Dan 353"},{"$f":"IF(WEEKDAY(DanKalendara)=WeekStartValue,CONCATENATE(\"Tjedan \",WEEKNUM(DanKalendara),\"/Dan \",DanKalendara-DATE(YEAR(DanKalendara),1,0)),CONCATENATE(\"Dan \",DanKalendara-DATE(YEAR(DanKalendara),1,0)))","v":"Dan 354"},{"$f":"IF(WEEKDAY(DanKalendara)=WeekStartValue,CONCATENATE(\"Tjedan \",WEEKNUM(DanKalendara),\"/Dan \",DanKalendara-DATE(YEAR(DanKalendara),1,0)),CONCATENATE(\"Dan \",DanKalendara-DATE(YEAR(DanKalendara),1,0)))","v":"Dan 355"},{"$f":"IF(WEEKDAY(DanKalendara)=WeekStartValue,CONCATENATE(\"Tjedan \",WEEKNUM(DanKalendara),\"/Dan \",DanKalendara-DATE(YEAR(DanKalendara),1,0)),CONCATENATE(\"Dan \",DanKalendara-DATE(YEAR(DanKalendara),1,0)))","v":"Dan 356"}]
[]
[null,null,{"$f":"DaysAndWeeks+DATE(KalendarskaGodina,12,1)-WEEKDAY(DATE(KalendarskaGodina,12,1),(WeekStart=\"PON\")+1)+29","v":"2018-12-23"},"2018-12-24","2018-12-25","2018-12-26","2018-12-27","2018-12-28","2018-12-29"]
[null,null,{"$f":"IF(WEEKDAY(DanKalendara)=WeekStartValue,CONCATENATE(\"Tjedan \",WEEKNUM(DanKalendara),\"/Dan \",DanKalendara-DATE(YEAR(DanKalendara),1,0)),CONCATENATE(\"Dan \",DanKalendara-DATE(YEAR(DanKalendara),1,0)))","v":"Tjedan 52/Dan 357"},{"$f":"IF(WEEKDAY(DanKalendara)=WeekStartValue,CONCATENATE(\"Tjedan \",WEEKNUM(DanKalendara),\"/Dan \",DanKalendara-DATE(YEAR(DanKalendara),1,0)),CONCATENATE(\"Dan \",DanKalendara-DATE(YEAR(DanKalendara),1,0)))","v":"Dan 358"},{"$f":"IF(WEEKDAY(DanKalendara)=WeekStartValue,CONCATENATE(\"Tjedan \",WEEKNUM(DanKalendara),\"/Dan \",DanKalendara-DATE(YEAR(DanKalendara),1,0)),CONCATENATE(\"Dan \",DanKalendara-DATE(YEAR(DanKalendara),1,0)))","v":"Dan 359"},{"$f":"IF(WEEKDAY(DanKalendara)=WeekStartValue,CONCATENATE(\"Tjedan \",WEEKNUM(DanKalendara),\"/Dan \",DanKalendara-DATE(YEAR(DanKalendara),1,0)),CONCATENATE(\"Dan \",DanKalendara-DATE(YEAR(DanKalendara),1,0)))","v":"Dan 360"},{"$f":"IF(WEEKDAY(DanKalendara)=WeekStartValue,CONCATENATE(\"Tjedan \",WEEKNUM(DanKalendara),\"/Dan \",DanKalendara-DATE(YEAR(DanKalendara),1,0)),CONCATENATE(\"Dan \",DanKalendara-DATE(YEAR(DanKalendara),1,0)))","v":"Dan 361"},{"$f":"IF(WEEKDAY(DanKalendara)=WeekStartValue,CONCATENATE(\"Tjedan \",WEEKNUM(DanKalendara),\"/Dan \",DanKalendara-DATE(YEAR(DanKalendara),1,0)),CONCATENATE(\"Dan \",DanKalendara-DATE(YEAR(DanKalendara),1,0)))","v":"Dan 362"},{"$f":"IF(WEEKDAY(DanKalendara)=WeekStartValue,CONCATENATE(\"Tjedan \",WEEKNUM(DanKalendara),\"/Dan \",DanKalendara-DATE(YEAR(DanKalendara),1,0)),CONCATENATE(\"Dan \",DanKalendara-DATE(YEAR(DanKalendara),1,0)))","v":"Dan 363"}]
[{"$nulls":4},"BILJEŠKE"]
[]
[null,null,{"$f":"DaysAndWeeks+DATE(KalendarskaGodina,12,1)-WEEKDAY(DATE(KalendarskaGodina,12,1),(WeekStart=\"PON\")+1)+36","v":"2018-12-30"},"2018-12-31"]
[null,null,{"$f":"IF(WEEKDAY(DanKalendara)=WeekStartValue,CONCATENATE(\"Tjedan \",WEEKNUM(DanKalendara),\"/Dan \",DanKalendara-DATE(YEAR(DanKalendara),1,0)),CONCATENATE(\"Dan \",DanKalendara-DATE(YEAR(DanKalendara),1,0)))","v":"Tjedan 53/Dan 364"},{"$f":"IF(WEEKDAY(DanKalendara)=WeekStartValue,CONCATENATE(\"Tjedan \",WEEKNUM(DanKalendara),\"/Dan \",DanKalendara-DATE(YEAR(DanKalendara),1,0)),CONCATENATE(\"Dan \",DanKalendara-DATE(YEAR(DanKalendara),1,0)))","v":"Dan 365"}]